Department,Entity,Date of Payment,Expense Type,Expense Area,Supplier,Transaction Number,Amount,Description,Supplier Postcode
"Department for Business, Innovation and Skills",UK Shared Business Services Ltd,01/11/2022,Computer Software Licences,ERP Support,Oracle Corporation UK Ltd,99776778,"30,000.13",PaaS and IaaS Universal Credits - Aug 22 - Oct 22,RG6 1RA
"Department for Business, Innovation and Skills",UK Shared Business Services Ltd,01/11/2022,Staff Training,HRSD Recoverables,Firebrand Training Ltd,99812631,"6,240.00",Training,WC1N 3AX
"Department for Business, Innovation and Skills",UK Shared Business Services Ltd,01/11/2022,Recruitment Costs,People,Onefix Recruitment Ltd,99828341,360.00,Recruitment Services,PO3 5EJ
"Department for Business, Innovation and Skills",UK Shared Business Services Ltd,01/11/2022,IT Cloud Services,Production Services,FlyForm Ltd,99829614,"4,999.20",Computing Software,CF10 3AG
"Department for Business, Innovation and Skills",UK Shared Business Services Ltd,01/11/2022,Staff Training,HRSD Recoverables,ASK Europe PLC,99829660,840.00,Training,MK43 0BT
"Department for Business, Innovation and Skills",UK Shared Business Services Ltd,01/11/2022,Staff Training,HRSD Recoverables,ASK Europe PLC,99829662,840.00,Training,MK43 0BT
"Department for Business, Innovation and Skills",UK Shared Business Services Ltd,01/11/2022,Staff Training,HRSD Recoverables,ASK Europe PLC,99829664,504.00,Training,MK43 0BT
"Department for Business, Innovation and Skills",UK Shared Business Services Ltd,01/11/2022,Staff Training,HRSD Recoverables,ASK Europe PLC,99829665,840.00,Training,MK43 0BT
"Department for Business, Innovation and Skills",UK Shared Business Services Ltd,01/11/2022,Health & Safety (inc. Medicals & Opticians),Resourcing,Unspecified,99829771,11.00,Medical Fees & Vaccinations (Actuals),HOME
"Department for Business, Innovation and Skills",UK Shared Business Services Ltd,01/11/2022,T&S - Subsistence,D&I Infrastructure & Network Services,Unspecified,99829772,44.08,Evening Meal (Actuals),HOME
"Department for Business, Innovation and Skills",UK Shared Business Services Ltd,01/11/2022,T&S - Vehicle Hire,D&I Infrastructure & Network Services,Unspecified,99829772,90.04,Vehicle Hire/Rental/Fuel (Actuals),HOME
"Department for Business, Innovation and Skills",UK Shared Business Services Ltd,01/11/2022,Recruitment Costs,Corporate HR,Everwell Occupational Health Ltd,99830081,462.00,Professional Services,CW11 3AE
"Department for Business, Innovation and Skills",UK Shared Business Services Ltd,02/11/2022,Other Staff Benefits,People,Amazon EU SARL,99823693,475.00,ZZ-Employee Benefits,EC2A 2FA
"Department for Business, Innovation and Skills",UK Shared Business Services Ltd,02/11/2022,Computing Consumables,Production Services,Probrand Ltd,99828624,958.80,Computer Consumables,SMARTFORM
"Department for Business, Innovation and Skills",UK Shared Business Services Ltd,02/11/2022,Computing Consumables,Production Services,Probrand Ltd,99828624,2.40,Computer Consumables,SMARTFORM
"Department for Business, Innovation and Skills",UK Shared Business Services Ltd,02/11/2022,T&S - Vehicle Hire,Production Services,Enterprise Rent-A-Car UK Ltd,99830817,116.08,,GL2 5DA
"Department for Business, Innovation and Skills",UK Shared Business Services Ltd,02/11/2022,T&S - Vehicle Hire,Production Services,Enterprise Rent-A-Car UK Ltd,99830817,23.22,SR 11349392 CAR HIRE,GL2 5DA
"Department for Business, Innovation and Skills",UK Shared Business Services Ltd,02/11/2022,Health & Safety (inc. Medicals & Opticians),People,Swindon Occupational Medical Services Ltd,99830907,"1,710.00",Professional Services,GL7 7AL
"Department for Business, Innovation and Skills",UK Shared Business Services Ltd,02/11/2022,Computer Software Licences,Production Services,Software AG (UK) Ltd,99830946,"156,000.00",Computer Consumables,DE24 8BY
"Department for Business, Innovation and Skills",UK Shared Business Services Ltd,02/11/2022,Staff Training,HRSD Recoverables,ASK Europe PLC,99831155,840.00,Training,MK43 0BT
"Department for Business, Innovation and Skills",UK Shared Business Services Ltd,02/11/2022,Staff Training,HRSD Recoverables,ASK Europe PLC,99831180,840.00,Training,MK43 0BT
"Department for Business, Innovation and Skills",UK Shared Business Services Ltd,02/11/2022,Staff Training,HRSD Recoverables,AM Health & Safety Ltd,99831183,990.00,Training,SN5 6BD
"Department for Business, Innovation and Skills",UK Shared Business Services Ltd,02/11/2022,Health & Safety (inc. Medicals & Opticians),HR Training & Specialists,Unspecified,99831252,15.00,Medical Fees & Vaccinations (Actuals),HOME
"Department for Business, Innovation and Skills",UK Shared Business Services Ltd,02/11/2022,Health & Safety (inc. Medicals & Opticians),Major Programmes,Unspecified,99831253,16.99,Medical Fees & Vaccinations (Actuals),HOME
"Department for Business, Innovation and Skills",UK Shared Business Services Ltd,02/11/2022,Health & Safety (inc. Medicals & Opticians),Payroll,Unspecified,99831254,16.99,Medical Fees & Vaccinations (Actuals),HOME
"Department for Business, Innovation and Skills",UK Shared Business Services Ltd,03/11/2022,Computer Software,Production Services,BSI Assurance UK Ltd,99830500,120.00,Computer Consumables,MK1 9EL
"Department for Business, Innovation and Skills",UK Shared Business Services Ltd,03/11/2022,Computer Software,Production Services,BSI Assurance UK Ltd,99830500,"3,420.00",Computer Consumables,MK1 9EL
"Department for Business, Innovation and Skills",UK Shared Business Services Ltd,03/11/2022,Computer Software,SIAM,Zoho Corporation Ltd,99830861,"4,184.40",Computing Software,MK3 6DP
"Department for Business, Innovation and Skills",UK Shared Business Services Ltd,03/11/2022,Staff Training,HRSD Recoverables,ASK Europe PLC,99831299,840.00,Training,MK43 0BT
"Department for Business, Innovation and Skills",UK Shared Business Services Ltd,03/11/2022,Staff Training,HRSD Recoverables,ASK Europe PLC,99831502,504.00,Training,MK43 0BT
"Department for Business, Innovation and Skills",UK Shared Business Services Ltd,03/11/2022,Staff Training,HRSD Recoverables,ASK Europe PLC,99831503,504.00,Training,MK43 0BT
"Department for Business, Innovation and Skills",UK Shared Business Services Ltd,03/11/2022,Health & Safety (inc. Medicals & Opticians),Facilities,AM Health & Safety Ltd,99831518,63.00,Professional Services,SN5 6BD
"Department for Business, Innovation and Skills",UK Shared Business Services Ltd,03/11/2022,Computer Software,Production Services,Sandhill Consultants Ltd,99832111,"44,397.60",Computer Consumables,NG31 6DW
"Department for Business, Innovation and Skills",UK Shared Business Services Ltd,03/11/2022,T&S - Mileage,Operational Excellence,Unspecified,99832356,115.20,Mileage - Car (excl Home to Office),HOME
"Department for Business, Innovation and Skills",UK Shared Business Services Ltd,03/11/2022,T&S - Other Charges,Operational Excellence,Unspecified,99832357,236.57,Home-working Equipment,HOME
"Department for Business, Innovation and Skills",UK Shared Business Services Ltd,03/11/2022,T&S - Parking Tolls Congestion Charges,Operational Excellence,Unspecified,99832358,10.00,"Parking, Tolls, Congestion Charge",HOME
"Department for Business, Innovation and Skills",UK Shared Business Services Ltd,04/11/2022,Contract Staff,Corporate HR,Alexander Mann Solutions Ltd,99786797,"3,780.36",Recruitment Services,EC2N 3AQ
"Department for Business, Innovation and Skills",UK Shared Business Services Ltd,04/11/2022,T&S - Vehicle Hire,Finance Services,Enterprise Rent-A-Car UK Ltd,99826488,126.06,,GL2 5DA
"Department for Business, Innovation and Skills",UK Shared Business Services Ltd,04/11/2022,T&S - Vehicle Hire,Finance Services,Enterprise Rent-A-Car UK Ltd,99826488,25.21,SR 11338326 CAR HIRE,GL2 5DA
"Department for Business, Innovation and Skills",UK Shared Business Services Ltd,04/11/2022,T&S - Vehicle Hire,Procurement Policy & Strategy,Enterprise Rent-A-Car UK Ltd,99826488,79.03,,GL2 5DA
"Department for Business, Innovation and Skills",UK Shared Business Services Ltd,04/11/2022,T&S - Vehicle Hire,Procurement Policy & Strategy,Enterprise Rent-A-Car UK Ltd,99826488,15.81,SR 11338326 CAR HIRE,GL2 5DA
"Department for Business, Innovation and Skills",UK Shared Business Services Ltd,04/11/2022,Computer Software Licences,SIAM,Softcat plc,99830516,"26,214.00",Computing Software,SL7 1LW
"Department for Business, Innovation and Skills",UK Shared Business Services Ltd,04/11/2022,Recruitment Costs,Production Services,Michael Page International Recruitment Limited T/A Page Personnel,99831092,"7,200.00",Recruitment Services,SL1 1QP
"Department for Business, Innovation and Skills",UK Shared Business Services Ltd,04/11/2022,Staff Training,HRSD Recoverables,ASK Europe PLC,99831811,840.00,Training,MK43 0BT
"Department for Business, Innovation and Skills",UK Shared Business Services Ltd,04/11/2022,Staff Training,HRSD Recoverables,ASK Europe PLC,99831816,504.00,Training,MK43 0BT
"Department for Business, Innovation and Skills",UK Shared Business Services Ltd,04/11/2022,Staff Training,HRSD Recoverables,ASK Europe PLC,99831819,504.00,Training,MK43 0BT
"Department for Business, Innovation and Skills",UK Shared Business Services Ltd,04/11/2022,Data Storage & Recovery,Finance Operations 1,The Maltings Document Storage Solutions Ltd,99831834,449.14,Computing Services,CF24 5EZ
"Department for Business, Innovation and Skills",UK Shared Business Services Ltd,04/11/2022,Staff Training,HRSD Recoverables,The Digital Accessibility Centre Ltd,99831837,"1,800.00",Training,SA10 6FG
"Department for Business, Innovation and Skills",UK Shared Business Services Ltd,04/11/2022,Staff Training,HRSD Recoverables,The Digital Accessibility Centre Ltd,99831837,"1,800.00",Training,SA10 6FG
"Department for Business, Innovation and Skills",UK Shared Business Services Ltd,04/11/2022,IT Cloud Services,Production Services,Boxxe Ltd,99832101,"131,996.40",Computer Consumables,YO31 7RE
"Department for Business, Innovation and Skills",UK Shared Business Services Ltd,04/11/2022,Health & Safety (inc. Medicals & Opticians),People,Benenden Healthcare Society,99832457,"20,682.20",Professional Services,YO26 4GG
"Department for Business, Innovation and Skills",UK Shared Business Services Ltd,04/11/2022,Telecoms - Maintenance & Repairs,Production Services,SCB Global Ltd,99832628,199.22,Computer Consumables,E14 5AA
"Department for Business, Innovation and Skills",UK Shared Business Services Ltd,04/11/2022,Consultancy Services,Production Services,Premiertec Consulting Ltd t/a Claremont,99832694,"47,238.76","Consultancy and Professional Services to develop two key work areas around API re-development and re-use, and automation of features connected to the primary and sub-processes associated with the SML process. Also included: BAU, CIs and CRs",NE1 3DY
"Department for Business, Innovation and Skills",UK Shared Business Services Ltd,04/11/2022,T&S - Other Charges,Tier 1 ROE Transactions,Unspecified,99832852,80.00,Miscellaneous (Actuals),HOME
"Department for Business, Innovation and Skills",UK Shared Business Services Ltd,04/11/2022,T&S - Vehicle Hire,People,Unspecified,99832853,216.00,Vehicle Hire/Rental/Fuel (Actuals),HOME
"Department for Business, Innovation and Skills",UK Shared Business Services Ltd,04/11/2022,UK - Professional Memberships & Subscriptions,Payroll,Unspecified,99832854,205.00,Professional Subscriptions (Actuals),HOME
"Department for Business, Innovation and Skills",UK Shared Business Services Ltd,04/11/2022,T&S - Mileage,Tier 1 ROE Transactions,Unspecified,99832855,473.40,Mileage - Car (excl Home to Office),HOME
"Department for Business, Innovation and Skills",UK Shared Business Services Ltd,04/11/2022,T&S - Subsistence,Tier 1 ROE Transactions,Unspecified,99832855,41.60,Evening Meal (Actuals),HOME
"Department for Business, Innovation and Skills",UK Shared Business Services Ltd,04/11/2022,T&S - Subsistence,Tier 1 ROE Transactions,Unspecified,99832855,9.80,Lunch (Actuals),HOME
"Department for Business, Innovation and Skills",UK Shared Business Services Ltd,04/11/2022,T&S - Mileage,D&I Infrastructure & Network Services,Unspecified,99832856,267.50,Mileage - Car (excl Home to Office),HOME
"Department for Business, Innovation and Skills",UK Shared Business Services Ltd,04/11/2022,T&S - Subsistence,D&I Infrastructure & Network Services,Unspecified,99832856,14.79,Evening Meal (Actuals),HOME
"Department for Business, Innovation and Skills",UK Shared Business Services Ltd,04/11/2022,T&S - Subsistence,D&I Infrastructure & Network Services,Unspecified,99832856,29.08,Lunch (Actuals),HOME
"Department for Business, Innovation and Skills",UK Shared Business Services Ltd,07/11/2022,Agency Staff,ROE Application Upgrade,Alexander Mann Solutions Ltd,99832032,"4,090.44",Recruitment Services,EC2N 3AQ
"Department for Business, Innovation and Skills",UK Shared Business Services Ltd,07/11/2022,Contract Staff,Production Services,Alexander Mann Solutions Ltd,99832038,"2,740.74",Recruitment Services,EC2N 3AQ
"Department for Business, Innovation and Skills",UK Shared Business Services Ltd,07/11/2022,Contract Staff,People,Alexander Mann Solutions Ltd,99832039,"7,696.44",Recruitment Services,EC2N 3AQ
"Department for Business, Innovation and Skills",UK Shared Business Services Ltd,07/11/2022,Contract Staff,People,Alexander Mann Solutions Ltd,99832041,"3,544.12",Recruitment Services,EC2N 3AQ
"Department for Business, Innovation and Skills",UK Shared Business Services Ltd,07/11/2022,Contract Staff,Production Services,Proventeq Limited,99833221,"66,858.00",Computer Consumables,RG6 6BU
"Department for Business, Innovation and Skills",UK Shared Business Services Ltd,07/11/2022,Contract Staff,Production Services,Alexander Mann Solutions Ltd,99833250,"2,079.18",Recruitment Services,EC2N 3AQ
"Department for Business, Innovation and Skills",UK Shared Business Services Ltd,07/11/2022,Contract Staff,SHARP,Alexander Mann Solutions Ltd,99833271,"3,387.66",Recruitment Services,EC2N 3AQ
"Department for Business, Innovation and Skills",UK Shared Business Services Ltd,07/11/2022,Computing Consumables,Production Services,Unspecified,99834149,-1.99,GPC_Computer Consumables,HOME
"Department for Business, Innovation and Skills",UK Shared Business Services Ltd,07/11/2022,GPC Clearing - SSC,Balance Sheet,Unspecified,99834149,1.99,Unspecified,HOME
"Department for Business, Innovation and Skills",UK Shared Business Services Ltd,07/11/2022,Computing Consumables,Production Services,Unspecified,99834150,160.74,GPC_Computer Consumables,HOME
"Department for Business, Innovation and Skills",UK Shared Business Services Ltd,07/11/2022,GPC Clearing - SSC,Balance Sheet,Unspecified,99834150,-160.74,Unspecified,HOME
"Department for Business, Innovation and Skills",UK Shared Business Services Ltd,07/11/2022,GPC Clearing - SSC,Balance Sheet,Unspecified,99834151,-320.10,Unspecified,HOME
"Department for Business, Innovation and Skills",UK Shared Business Services Ltd,07/11/2022,GPC Sundry Expenditure,Production Services,Unspecified,99834151,320.10,GPC_Miscellaneous GPC Expenditure,HOME
"Department for Business, Innovation and Skills",UK Shared Business Services Ltd,07/11/2022,GPC Clearing - SSC,Balance Sheet,Unspecified,99834152,-82.68,Unspecified,HOME
"Department for Business, Innovation and Skills",UK Shared Business Services Ltd,07/11/2022,GPC Sundry Expenditure,Production Services,Unspecified,99834152,82.68,GPC_Miscellaneous GPC Expenditure,HOME
"Department for Business, Innovation and Skills",UK Shared Business Services Ltd,07/11/2022,Health & Safety (inc. Medicals & Opticians),UK SBS Data,Unspecified,99834153,10.00,Medical Fees & Vaccinations (Actuals),HOME
"Department for Business, Innovation and Skills",UK Shared Business Services Ltd,07/11/2022,Health & Safety (inc. Medicals & Opticians),UK SBS Data,Unspecified,99834154,6.99,Medical Fees & Vaccinations (Actuals),HOME
"Department for Business, Innovation and Skills",UK Shared Business Services Ltd,08/11/2022,Consultancy Services,Corporate HR,JobTrolley Ltd,99826384,"5,521.80",Consultancy Services,MK9 1LR
"Department for Business, Innovation and Skills",UK Shared Business Services Ltd,08/11/2022,Hardware/Software Maintenance,Production Services,UKRI - Engineering & Physical Sciences Research Council,99827774,"37,849.61",Computer Consumables,INTERCO
"Department for Business, Innovation and Skills",UK Shared Business Services Ltd,08/11/2022,Other Staff Benefits,People,Health Assured Ltd,99834189,338.40,Professional Services,M4 4FB
"Department for Business, Innovation and Skills",UK Shared Business Services Ltd,08/11/2022,Computer Hardware,Production Services,Phoenix Software Ltd,99834217,630.00,Computer Consumables,YO42 1NS
"Department for Business, Innovation and Skills",UK Shared Business Services Ltd,08/11/2022,Computer Hardware,Production Services,Phoenix Software Ltd,99834217,"21,024.68",Computer Consumables,YO42 1NS
"Department for Business, Innovation and Skills",UK Shared Business Services Ltd,08/11/2022,Computer Hardware,Production Services,Phoenix Software Ltd,99834218,"2,883.92",Computer Consumables,YO42 1NS
"Department for Business, Innovation and Skills",UK Shared Business Services Ltd,08/11/2022,T&S - Accommodation,Accounting,Unspecified,99834507,211.10,Accommodation - Hotels Elsewhere Actuals,HOME
"Department for Business, Innovation and Skills",UK Shared Business Services Ltd,08/11/2022,T&S - Subsistence,Accounting,Unspecified,99834507,14.29,Evening Meal (Actuals),HOME
"Department for Business, Innovation and Skills",UK Shared Business Services Ltd,08/11/2022,T&S - Subsistence,Accounting,Unspecified,99834507,27.29,Lunch (Actuals),HOME
"Department for Business, Innovation and Skills",UK Shared Business Services Ltd,08/11/2022,T&S - Mileage,D&I Operations,Unspecified,99834508,85.95,Mileage - Car (excl Home to Office),HOME
"Department for Business, Innovation and Skills",UK Shared Business Services Ltd,08/11/2022,UK - Professional Memberships & Subscriptions,"Risk, Information & Security Compliance",Unspecified,99834509,121.60,Professional Subscriptions (Actuals),HOME
"Department for Business, Innovation and Skills",UK Shared Business Services Ltd,08/11/2022,T&S - Parking Tolls Congestion Charges,Executive Function,Unspecified,99834510,6.65,"Parking, Tolls, Congestion Charge",HOME
"Department for Business, Innovation and Skills",UK Shared Business Services Ltd,08/11/2022,T&S - Accommodation,Accounting,Corporate Travel Management (North) Ltd,99835409,2.00,04/10/2022---Hotel Fee,BD1 5HQ
"Department for Business, Innovation and Skills",UK Shared Business Services Ltd,08/11/2022,T&S - Accommodation,Accounting,Corporate Travel Management (North) Ltd,99835409,0.40,TRAVEL EXPENSES,BD1 5HQ
"Department for Business, Innovation and Skills",UK Shared Business Services Ltd,08/11/2022,T&S - Accommodation,Central Services Management,Corporate Travel Management (North) Ltd,99835409,0.80,05/10/2022---Hotel Fee,BD1 5HQ
"Department for Business, Innovation and Skills",UK Shared Business Services Ltd,08/11/2022,T&S - Accommodation,Central Services Management,Corporate Travel Management (North) Ltd,99835409,210.00,05/10/2022-Cbh Hardwick Hall H-Teesside-Hotel,BD1 5HQ
"Department for Business, Innovation and Skills",UK Shared Business Services Ltd,08/11/2022,T&S - Accommodation,Central Services Management,Corporate Travel Management (North) Ltd,99835409,0.80,11/10/2022---Hotel Fee,BD1 5HQ
"Department for Business, Innovation and Skills",UK Shared Business Services Ltd,08/11/2022,T&S - Accommodation,Central Services Management,Corporate Travel Management (North) Ltd,99835409,150.00,11/10/2022--Jurys Inn Swindon-Bristol-Hotel,BD1 5HQ
"Department for Business, Innovation and Skills",UK Shared Business Services Ltd,08/11/2022,T&S - Accommodation,Central Services Management,Corporate Travel Management (North) Ltd,99835409,0.32,TRAVEL EXPENSES,BD1 5HQ
"Department for Business, Innovation and Skills",UK Shared Business Services Ltd,08/11/2022,T&S - Accommodation,D&I Infrastructure & Network Services,Corporate Travel Management (North) Ltd,99835409,0.80,09/10/2022---Hotel Fee,BD1 5HQ
"Department for Business, Innovation and Skills",UK Shared Business Services Ltd,08/11/2022,T&S - Accommodation,D&I Infrastructure & Network Services,Corporate Travel Management (North) Ltd,99835409,63.50,09/10/2022-Premier Inn Stocktonontees Teess-Teesside-Hotel,BD1 5HQ
"Department for Business, Innovation and Skills",UK Shared Business Services Ltd,08/11/2022,T&S - Accommodation,D&I Infrastructure & Network Services,Corporate Travel Management (North) Ltd,99835409,0.16,TRAVEL EXPENSES,BD1 5HQ
"Department for Business, Innovation and Skills",UK Shared Business Services Ltd,08/11/2022,T&S - Accommodation,D&I Management,Corporate Travel Management (North) Ltd,99835409,0.80,12/10/2022---Hotel Fee,BD1 5HQ
"Department for Business, Innovation and Skills",UK Shared Business Services Ltd,08/11/2022,T&S - Accommodation,D&I Management,Corporate Travel Management (North) Ltd,99835409,70.00,12/10/2022-Mercure Manchester-Manchester-Hotel,BD1 5HQ
"Department for Business, Innovation and Skills",UK Shared Business Services Ltd,08/11/2022,T&S - Accommodation,D&I Management,Corporate Travel Management (North) Ltd,99835409,0.80,12/10/2022---Hotel Fee,BD1 5HQ
"Department for Business, Innovation and Skills",UK Shared Business Services Ltd,08/11/2022,T&S - Accommodation,D&I Management,Corporate Travel Management (North) Ltd,99835409,70.00,12/10/2022-Mercure Manchester-Manchester-Hotel,BD1 5HQ
"Department for Business, Innovation and Skills",UK Shared Business Services Ltd,08/11/2022,T&S - Accommodation,D&I Management,Corporate Travel Management (North) Ltd,99835409,0.32,TRAVEL EXPENSES,BD1 5HQ
"Department for Business, Innovation and Skills",UK Shared Business Services Ltd,08/11/2022,T&S - Accommodation,D&I Operations,Corporate Travel Management (North) Ltd,99835409,0.80,09/10/2022---Hotel Fee,BD1 5HQ
"Department for Business, Innovation and Skills",UK Shared Business Services Ltd,08/11/2022,T&S - Accommodation,D&I Operations,Corporate Travel Management (North) Ltd,99835409,341.50,09/10/2022-Premier Inn Stocktonontees Teess-Teesside-Hotel,BD1 5HQ
"Department for Business, Innovation and Skills",UK Shared Business Services Ltd,08/11/2022,T&S - Accommodation,D&I Operations,Corporate Travel Management (North) Ltd,99835409,0.80,24/10/2022---Hotel Fee,BD1 5HQ
"Department for Business, Innovation and Skills",UK Shared Business Services Ltd,08/11/2022,T&S - Accommodation,D&I Operations,Corporate Travel Management (North) Ltd,99835409,290.50,24/10/2022-Premier Inn Stocktonontees Teess-Teesside-Hotel,BD1 5HQ
"Department for Business, Innovation and Skills",UK Shared Business Services Ltd,08/11/2022,T&S - Accommodation,D&I Operations,Corporate Travel Management (North) Ltd,99835409,0.32,TRAVEL EXPENSES,BD1 5HQ
"Department for Business, Innovation and Skills",UK Shared Business Services Ltd,08/11/2022,T&S - Accommodation,Executive Function,Corporate Travel Management (North) Ltd,99835409,0.80,05/10/2022---Hotel Fee,BD1 5HQ
"Department for Business, Innovation and Skills",UK Shared Business Services Ltd,08/11/2022,T&S - Accommodation,Executive Function,Corporate Travel Management (North) Ltd,99835409,210.00,05/10/2022-Cbh Hardwick Hall H-Teesside-Hotel,BD1 5HQ
"Department for Business, Innovation and Skills",UK Shared Business Services Ltd,08/11/2022,T&S - Accommodation,Executive Function,Corporate Travel Management (North) Ltd,99835409,0.16,TRAVEL EXPENSES,BD1 5HQ
"Department for Business, Innovation and Skills",UK Shared Business Services Ltd,08/11/2022,T&S - Accommodation,Finance Operations 1,Corporate Travel Management (North) Ltd,99835409,0.80,18/10/2022---Hotel Fee,BD1 5HQ
"Department for Business, Innovation and Skills",UK Shared Business Services Ltd,08/11/2022,T&S - Accommodation,Finance Operations 1,Corporate Travel Management (North) Ltd,99835409,198.00,18/10/2022-Parkmore Hotel Leis-Teesside-Hotel,BD1 5HQ
"Department for Business, Innovation and Skills",UK Shared Business Services Ltd,08/11/2022,T&S - Accommodation,Finance Operations 1,Corporate Travel Management (North) Ltd,99835409,0.80,18/10/2022---Hotel Fee,BD1 5HQ
"Department for Business, Innovation and Skills",UK Shared Business Services Ltd,08/11/2022,T&S - Accommodation,Finance Operations 1,Corporate Travel Management (North) Ltd,99835409,198.00,18/10/2022-Parkmore Hotel Leis-Teesside-Hotel,BD1 5HQ
"Department for Business, Innovation and Skills",UK Shared Business Services Ltd,08/11/2022,T&S - Accommodation,Finance Operations 1,Corporate Travel Management (North) Ltd,99835409,0.80,18/10/2022---Hotel Fee,BD1 5HQ
"Department for Business, Innovation and Skills",UK Shared Business Services Ltd,08/11/2022,T&S - Accommodation,Finance Operations 1,Corporate Travel Management (North) Ltd,99835409,198.00,18/10/2022-Parkmore Hotel Leis-Teesside-Hotel,BD1 5HQ
"Department for Business, Innovation and Skills",UK Shared Business Services Ltd,08/11/2022,T&S - Accommodation,Finance Operations 1,Corporate Travel Management (North) Ltd,99835409,0.48,TRAVEL EXPENSES,BD1 5HQ
"Department for Business, Innovation and Skills",UK Shared Business Services Ltd,08/11/2022,T&S - Accommodation,HR Ops,Corporate Travel Management (North) Ltd,99835409,0.80,11/10/2022---Hotel Fee,BD1 5HQ
"Department for Business, Innovation and Skills",UK Shared Business Services Ltd,08/11/2022,T&S - Accommodation,HR Ops,Corporate Travel Management (North) Ltd,99835409,115.00,11/10/2022-Priory Hotel Caerleon-Swansea-Hotel,BD1 5HQ
"Department for Business, Innovation and Skills",UK Shared Business Services Ltd,08/11/2022,T&S - Accommodation,HR Ops,Corporate Travel Management (North) Ltd,99835409,0.80,11/10/2022---Hotel Fee,BD1 5HQ
"Department for Business, Innovation and Skills",UK Shared Business Services Ltd,08/11/2022,T&S - Accommodation,HR Ops,Corporate Travel Management (North) Ltd,99835409,115.00,11/10/2022-Priory Hotel Caerleon-Swansea-Hotel,BD1 5HQ
"Department for Business, Innovation and Skills",UK Shared Business Services Ltd,08/11/2022,T&S - Accommodation,HR Ops,Corporate Travel Management (North) Ltd,99835409,0.80,11/10/2022---Hotel Fee,BD1 5HQ
"Department for Business, Innovation and Skills",UK Shared Business Services Ltd,08/11/2022,T&S - Accommodation,HR Ops,Corporate Travel Management (North) Ltd,99835409,114.79,11/10/2022-Holiday Inn Exp New-Cardiff-Hotel,BD1 5HQ
"Department for Business, Innovation and Skills",UK Shared Business Services Ltd,08/11/2022,T&S - Accommodation,HR Ops,Corporate Travel Management (North) Ltd,99835409,0.48,TRAVEL EXPENSES,BD1 5HQ
"Department for Business, Innovation and Skills",UK Shared Business Services Ltd,08/11/2022,T&S - Accommodation,Partnership Management,Corporate Travel Management (North) Ltd,99835409,0.80,08/11/2022---Hotel Fee,BD1 5HQ
"Department for Business, Innovation and Skills",UK Shared Business Services Ltd,08/11/2022,T&S - Accommodation,Partnership Management,Corporate Travel Management (North) Ltd,99835409,56.04,08/11/2022-Travelodge Swindon Central-Swindon-Hotel,BD1 5HQ
"Department for Business, Innovation and Skills",UK Shared Business Services Ltd,08/11/2022,T&S - Accommodation,Partnership Management,Corporate Travel Management (North) Ltd,99835409,0.80,19/10/2022---Hotel Fee,BD1 5HQ
"Department for Business, Innovation and Skills",UK Shared Business Services Ltd,08/11/2022,T&S - Accommodation,Partnership Management,Corporate Travel Management (North) Ltd,99835409,227.10,19/10/2022-Premier Inn London Leicester Squ-London-Hotel,BD1 5HQ
"Department for Business, Innovation and Skills",UK Shared Business Services Ltd,08/11/2022,T&S - Accommodation,Partnership Management,Corporate Travel Management (North) Ltd,99835409,0.32,TRAVEL EXPENSES,BD1 5HQ
"Department for Business, Innovation and Skills",UK Shared Business Services Ltd,08/11/2022,T&S - Accommodation,Production Services,Corporate Travel Management (North) Ltd,99835409,0.80,10/10/2022---Hotel Fee,BD1 5HQ
"Department for Business, Innovation and Skills",UK Shared Business Services Ltd,08/11/2022,T&S - Accommodation,Production Services,Corporate Travel Management (North) Ltd,99835409,278.50,10/10/2022-Premier Inn Stocktonontees Teess-Teesside-Hotel,BD1 5HQ
"Department for Business, Innovation and Skills",UK Shared Business Services Ltd,08/11/2022,T&S - Accommodation,Production Services,Corporate Travel Management (North) Ltd,99835409,0.16,TRAVEL EXPENSES,BD1 5HQ
"Department for Business, Innovation and Skills",UK Shared Business Services Ltd,08/11/2022,T&S - Accommodation,Tier 1 ROE Transactions,Corporate Travel Management (North) Ltd,99835409,0.80,10/10/2022---Hotel Fee,BD1 5HQ
"Department for Business, Innovation and Skills",UK Shared Business Services Ltd,08/11/2022,T&S - Accommodation,Tier 1 ROE Transactions,Corporate Travel Management (North) Ltd,99835409,176.28,10/10/2022-Holiday Inn Exp New-Cardiff-Hotel,BD1 5HQ
"Department for Business, Innovation and Skills",UK Shared Business Services Ltd,08/11/2022,T&S - Accommodation,Tier 1 ROE Transactions,Corporate Travel Management (North) Ltd,99835409,0.16,TRAVEL EXPENSES,BD1 5HQ
"Department for Business, Innovation and Skills",UK Shared Business Services Ltd,08/11/2022,T&S - Other Charges,Finance Operations 2,Corporate Travel Management (North) Ltd,99835409,0.25,19/10/2022---Rail Fee,BD1 5HQ
"Department for Business, Innovation and Skills",UK Shared Business Services Ltd,08/11/2022,T&S - Other Charges,Finance Operations 2,Corporate Travel Management (North) Ltd,99835409,35.00,19/10/2022-Newport S.wales-Swindon-Rail,BD1 5HQ
"Department for Business, Innovation and Skills",UK Shared Business Services Ltd,08/11/2022,T&S - Other Charges,Finance Operations 2,Corporate Travel Management (North) Ltd,99835409,0.25,26/10/2022---Rail Fee,BD1 5HQ
"Department for Business, Innovation and Skills",UK Shared Business Services Ltd,08/11/2022,T&S - Other Charges,Finance Operations 2,Corporate Travel Management (North) Ltd,99835409,35.00,26/10/2022-Newport S.wales-Swindon-Rail,BD1 5HQ
"Department for Business, Innovation and Skills",UK Shared Business Services Ltd,08/11/2022,T&S - Public Transport,Accounting,Corporate Travel Management (North) Ltd,99835409,0.25,17/10/2022---Rail Fee,BD1 5HQ
"Department for Business, Innovation and Skills",UK Shared Business Services Ltd,08/11/2022,T&S - Public Transport,Accounting,Corporate Travel Management (North) Ltd,99835409,19.20,17/10/2022-Swindon (wilts)-Abergavenny-Rail,BD1 5HQ
"Department for Business, Innovation and Skills",UK Shared Business Services Ltd,08/11/2022,T&S - Public Transport,Accounting,Corporate Travel Management (North) Ltd,99835409,0.25,20/10/2022---Rail Fee,BD1 5HQ
"Department for Business, Innovation and Skills",UK Shared Business Services Ltd,08/11/2022,T&S - Public Transport,Accounting,Corporate Travel Management (North) Ltd,99835409,22.20,20/10/2022-Thirsk-Skipton-Rail,BD1 5HQ
"Department for Business, Innovation and Skills",UK Shared Business Services Ltd,08/11/2022,T&S - Public Transport,Board,Corporate Travel Management (North) Ltd,99835409,0.12,01/11/2022---Rail Fee,BD1 5HQ
"Department for Business, Innovation and Skills",UK Shared Business Services Ltd,08/11/2022,T&S - Public Transport,Board,Corporate Travel Management (North) Ltd,99835409,158.70,01/11/2022-Swindon (wilts)-London Paddington-Rail,BD1 5HQ
"Department for Business, Innovation and Skills",UK Shared Business Services Ltd,08/11/2022,T&S - Public Transport,Board,Corporate Travel Management (North) Ltd,99835409,0.13,01/11/2022---Rail Fee,BD1 5HQ
"Department for Business, Innovation and Skills",UK Shared Business Services Ltd,08/11/2022,T&S - Public Transport,Board,Corporate Travel Management (North) Ltd,99835409,158.70,01/11/2022-Swindon (wilts)-London Paddington-Rail,BD1 5HQ
"Department for Business, Innovation and Skills",UK Shared Business Services Ltd,08/11/2022,T&S - Public Transport,Category and Continuous Improvement,Corporate Travel Management (North) Ltd,99835409,0.25,04/10/2022---Rail Fee,BD1 5HQ
"Department for Business, Innovation and Skills",UK Shared Business Services Ltd,08/11/2022,T&S - Public Transport,Category and Continuous Improvement,Corporate Travel Management (North) Ltd,99835409,26.20,04/10/2022-Bristol Parkway-Swindon-Rail,BD1 5HQ
"Department for Business, Innovation and Skills",UK Shared Business Services Ltd,08/11/2022,T&S - Public Transport,Category and Continuous Improvement,Corporate Travel Management (North) Ltd,99835409,0.25,04/10/2022---Rail Fee,BD1 5HQ
"Department for Business, Innovation and Skills",UK Shared Business Services Ltd,08/11/2022,T&S - Public Transport,Category and Continuous Improvement,Corporate Travel Management (North) Ltd,99835409,35.00,04/10/2022-Newport S.wales-Swindon-Rail,BD1 5HQ
"Department for Business, Innovation and Skills",UK Shared Business Services Ltd,08/11/2022,T&S - Public Transport,Category and Continuous Improvement,Corporate Travel Management (North) Ltd,99835409,0.25,11/10/2022---Rail Fee,BD1 5HQ
"Department for Business, Innovation and Skills",UK Shared Business Services Ltd,08/11/2022,T&S - Public Transport,Category and Continuous Improvement,Corporate Travel Management (North) Ltd,99835409,26.20,11/10/2022-Bristol Temple Meads-Swindon-Rail,BD1 5HQ
"Department for Business, Innovation and Skills",UK Shared Business Services Ltd,08/11/2022,T&S - Public Transport,Category and Continuous Improvement,Corporate Travel Management (North) Ltd,99835409,0.25,11/10/2022---Rail Fee,BD1 5HQ
"Department for Business, Innovation and Skills",UK Shared Business Services Ltd,08/11/2022,T&S - Public Transport,Category and Continuous Improvement,Corporate Travel Management (North) Ltd,99835409,35.00,11/10/2022-Newport S.wales-Swindon-Rail,BD1 5HQ
"Department for Business, Innovation and Skills",UK Shared Business Services Ltd,08/11/2022,T&S - Public Transport,Category and Continuous Improvement,Corporate Travel Management (North) Ltd,99835409,0.25,11/10/2022---Rail Fee,BD1 5HQ
"Department for Business, Innovation and Skills",UK Shared Business Services Ltd,08/11/2022,T&S - Public Transport,Category and Continuous Improvement,Corporate Travel Management (North) Ltd,99835409,49.20,11/10/2022-Bridgend-Swindon-Rail,BD1 5HQ
"Department for Business, Innovation and Skills",UK Shared Business Services Ltd,08/11/2022,T&S - Public Transport,Category and Continuous Improvement,Corporate Travel Management (North) Ltd,99835409,0.25,13/10/2022---Rail Fee,BD1 5HQ
"Department for Business, Innovation and Skills",UK Shared Business Services Ltd,08/11/2022,T&S - Public Transport,Category and Continuous Improvement,Corporate Travel Management (North) Ltd,99835409,26.20,13/10/2022-Bristol Parkway-Swindon-Rail,BD1 5HQ
"Department for Business, Innovation and Skills",UK Shared Business Services Ltd,08/11/2022,T&S - Public Transport,Category and Continuous Improvement,Corporate Travel Management (North) Ltd,99835409,0.25,25/10/2022---Rail Fee,BD1 5HQ
"Department for Business, Innovation and Skills",UK Shared Business Services Ltd,08/11/2022,T&S - Public Transport,Category and Continuous Improvement,Corporate Travel Management (North) Ltd,99835409,35.00,25/10/2022-Newport S.wales-Swindon-Rail,BD1 5HQ
"Department for Business, Innovation and Skills",UK Shared Business Services Ltd,08/11/2022,T&S - Public Transport,Category and Continuous Improvement,Corporate Travel Management (North) Ltd,99835409,0.25,26/10/2022---Rail Fee,BD1 5HQ
"Department for Business, Innovation and Skills",UK Shared Business Services Ltd,08/11/2022,T&S - Public Transport,Category and Continuous Improvement,Corporate Travel Management (North) Ltd,99835409,35.00,26/10/2022-Newport S.wales-Swindon-Rail,BD1 5HQ
"Department for Business, Innovation and Skills",UK Shared Business Services Ltd,08/11/2022,T&S - Public Transport,Corporate Finance,Corporate Travel Management (North) Ltd,99835409,0.25,24/10/2022---Rail Fee,BD1 5HQ
"Department for Business, Innovation and Skills",UK Shared Business Services Ltd,08/11/2022,T&S - Public Transport,Corporate Finance,Corporate Travel Management (North) Ltd,99835409,35.00,24/10/2022-Newport S.wales-Swindon-Rail,BD1 5HQ
"Department for Business, Innovation and Skills",UK Shared Business Services Ltd,08/11/2022,T&S - Public Transport,Corporate Finance,Corporate Travel Management (North) Ltd,99835409,0.25,27/10/2022---Rail Fee,BD1 5HQ
"Department for Business, Innovation and Skills",UK Shared Business Services Ltd,08/11/2022,T&S - Public Transport,Corporate Finance,Corporate Travel Management (North) Ltd,99835409,35.00,27/10/2022-Pontypool And New Inn-Swindon-Rail,BD1 5HQ
"Department for Business, Innovation and Skills",UK Shared Business Services Ltd,08/11/2022,T&S - Public Transport,D&I Management,Corporate Travel Management (North) Ltd,99835409,0.25,01/11/2022---Rail Fee,BD1 5HQ
"Department for Business, Innovation and Skills",UK Shared Business Services Ltd,08/11/2022,T&S - Public Transport,D&I Management,Corporate Travel Management (North) Ltd,99835409,202.50,01/11/2022-Chippenham-London Paddington-Rail,BD1 5HQ
"Department for Business, Innovation and Skills",UK Shared Business Services Ltd,08/11/2022,T&S - Public Transport,D&I Management,Corporate Travel Management (North) Ltd,99835409,0.12,12/10/2022---Rail Fee,BD1 5HQ
"Department for Business, Innovation and Skills",UK Shared Business Services Ltd,08/11/2022,T&S - Public Transport,D&I Management,Corporate Travel Management (North) Ltd,99835409,213.40,12/10/2022-Swindon (wilts)-Manchester Piccadilly-Rail,BD1 5HQ
"Department for Business, Innovation and Skills",UK Shared Business Services Ltd,08/11/2022,T&S - Public Transport,D&I Management,Corporate Travel Management (North) Ltd,99835409,0.13,12/10/2022---Rail Fee,BD1 5HQ
"Department for Business, Innovation and Skills",UK Shared Business Services Ltd,08/11/2022,T&S - Public Transport,D&I Management,Corporate Travel Management (North) Ltd,99835409,213.40,12/10/2022-Swindon (wilts)-Manchester Piccadilly-Rail,BD1 5HQ
"Department for Business, Innovation and Skills",UK Shared Business Services Ltd,08/11/2022,T&S - Public Transport,DDaT,Corporate Travel Management (North) Ltd,99835409,0.25,01/11/2022---Rail Fee,BD1 5HQ
"Department for Business, Innovation and Skills",UK Shared Business Services Ltd,08/11/2022,T&S - Public Transport,DDaT,Corporate Travel Management (North) Ltd,99835409,40.70,01/11/2022-Cardiff Central-Swindon-Rail,BD1 5HQ
"Department for Business, Innovation and Skills",UK Shared Business Services Ltd,08/11/2022,T&S - Public Transport,DDaT,Corporate Travel Management (North) Ltd,99835409,0.25,27/10/2022---Rail Fee,BD1 5HQ
"Department for Business, Innovation and Skills",UK Shared Business Services Ltd,08/11/2022,T&S - Public Transport,DDaT,Corporate Travel Management (North) Ltd,99835409,40.70,27/10/2022-Cardiff Central-Swindon-Rail,BD1 5HQ
"Department for Business, Innovation and Skills",UK Shared Business Services Ltd,08/11/2022,T&S - Public Transport,Executive Function,Corporate Travel Management (North) Ltd,99835409,0.25,01/11/2022---Rail Fee,BD1 5HQ
"Department for Business, Innovation and Skills",UK Shared Business Services Ltd,08/11/2022,T&S - Public Transport,Executive Function,Corporate Travel Management (North) Ltd,99835409,80.50,01/11/2022-Didcot Parkway-London Paddington-Rail,BD1 5HQ
"Department for Business, Innovation and Skills",UK Shared Business Services Ltd,08/11/2022,T&S - Public Transport,Executive Function,Corporate Travel Management (North) Ltd,99835409,0.25,01/11/2022---Rail Fee,BD1 5HQ
"Department for Business, Innovation and Skills",UK Shared Business Services Ltd,08/11/2022,T&S - Public Transport,Executive Function,Corporate Travel Management (North) Ltd,99835409,56.80,01/11/2022-Andover-London Waterloo-Rail,BD1 5HQ
"Department for Business, Innovation and Skills",UK Shared Business Services Ltd,08/11/2022,T&S - Public Transport,Executive Function,Corporate Travel Management (North) Ltd,99835409,0.25,01/11/2022---Rail Fee,BD1 5HQ
"Department for Business, Innovation and Skills",UK Shared Business Services Ltd,08/11/2022,T&S - Public Transport,Executive Function,Corporate Travel Management (North) Ltd,99835409,215.30,01/11/2022-Chippenham-London Paddington-Rail,BD1 5HQ
"Department for Business, Innovation and Skills",UK Shared Business Services Ltd,08/11/2022,T&S - Public Transport,Executive Function,Corporate Travel Management (North) Ltd,99835409,0.25,01/11/2022---Rail Fee,BD1 5HQ
"Department for Business, Innovation and Skills",UK Shared Business Services Ltd,08/11/2022,T&S - Public Transport,Executive Function,Corporate Travel Management (North) Ltd,99835409,202.50,01/11/2022-Chippenham-London Paddington-Rail,BD1 5HQ
"Department for Business, Innovation and Skills",UK Shared Business Services Ltd,08/11/2022,T&S - Public Transport,Finance Operations 2,Corporate Travel Management (North) Ltd,99835409,0.25,10/10/2022---Rail Fee,BD1 5HQ
"Department for Business, Innovation and Skills",UK Shared Business Services Ltd,08/11/2022,T&S - Public Transport,Finance Operations 2,Corporate Travel Management (North) Ltd,99835409,35.00,10/10/2022-Abergavenny-Swindon-Rail,BD1 5HQ
"Department for Business, Innovation and Skills",UK Shared Business Services Ltd,08/11/2022,T&S - Public Transport,Finance Operations 2,Corporate Travel Management (North) Ltd,99835409,0.25,26/10/2022---Rail Fee,BD1 5HQ
"Department for Business, Innovation and Skills",UK Shared Business Services Ltd,08/11/2022,T&S - Public Transport,Finance Operations 2,Corporate Travel Management (North) Ltd,99835409,35.00,26/10/2022-Abergavenny-Swindon-Rail,BD1 5HQ
"Department for Business, Innovation and Skills",UK Shared Business Services Ltd,08/11/2022,T&S - Public Transport,HR Ops,Corporate Travel Management (North) Ltd,99835409,0.13,11/10/2022---Rail Fee,BD1 5HQ
"Department for Business, Innovation and Skills",UK Shared Business Services Ltd,08/11/2022,T&S - Public Transport,HR Ops,Corporate Travel Management (North) Ltd,99835409,35.00,11/10/2022-Swindon (wilts)-Newport Gwent-Rail,BD1 5HQ
"Department for Business, Innovation and Skills",UK Shared Business Services Ltd,08/11/2022,T&S - Public Transport,HR Ops,Corporate Travel Management (North) Ltd,99835409,0.12,11/10/2022---Rail Fee,BD1 5HQ
"Department for Business, Innovation and Skills",UK Shared Business Services Ltd,08/11/2022,T&S - Public Transport,HR Ops,Corporate Travel Management (North) Ltd,99835409,35.00,11/10/2022-Swindon (wilts)-Newport Gwent-Rail,BD1 5HQ
"Department for Business, Innovation and Skills",UK Shared Business Services Ltd,08/11/2022,T&S - Public Transport,HR Training & Specialists,Corporate Travel Management (North) Ltd,99835409,0.25,26/10/2022---Rail Fee,BD1 5HQ
"Department for Business, Innovation and Skills",UK Shared Business Services Ltd,08/11/2022,T&S - Public Transport,HR Training & Specialists,Corporate Travel Management (North) Ltd,99835409,157.20,26/10/2022-Swindon (wilts)-ZONE U1* LONDN-Rail,BD1 5HQ
"Department for Business, Innovation and Skills",UK Shared Business Services Ltd,08/11/2022,T&S - Public Transport,New System Evaluation,Corporate Travel Management (North) Ltd,99835409,0.25,26/10/2022---Rail Fee,BD1 5HQ
"Department for Business, Innovation and Skills",UK Shared Business Services Ltd,08/11/2022,T&S - Public Transport,New System Evaluation,Corporate Travel Management (North) Ltd,99835409,51.00,26/10/2022-Stonehouse-London Zones 1-6-Rail,BD1 5HQ
"Department for Business, Innovation and Skills",UK Shared Business Services Ltd,08/11/2022,T&S - Public Transport,Partnership Management,Corporate Travel Management (North) Ltd,99835409,0.25,11/10/2022---Rail Fee,BD1 5HQ
"Department for Business, Innovation and Skills",UK Shared Business Services Ltd,08/11/2022,T&S - Public Transport,Partnership Management,Corporate Travel Management (North) Ltd,99835409,269.00,11/10/2022-Peterborough-Swindon-Rail,BD1 5HQ
"Department for Business, Innovation and Skills",UK Shared Business Services Ltd,08/11/2022,T&S - Public Transport,Partnership Management,Corporate Travel Management (North) Ltd,99835409,0.25,19/10/2022---Rail Fee,BD1 5HQ
"Department for Business, Innovation and Skills",UK Shared Business Services Ltd,08/11/2022,T&S - Public Transport,Partnership Management,Corporate Travel Management (North) Ltd,99835409,36.50,19/10/2022-Peterborough-London Victoria-Rail,BD1 5HQ
"Department for Business, Innovation and Skills",UK Shared Business Services Ltd,08/11/2022,T&S - Public Transport,Payroll,Corporate Travel Management (North) Ltd,99835409,0.25,20/10/2022---Rail Fee,BD1 5HQ
"Department for Business, Innovation and Skills",UK Shared Business Services Ltd,08/11/2022,T&S - Public Transport,Payroll,Corporate Travel Management (North) Ltd,99835409,48.00,20/10/2022-Swindon (wilts)-London Paddington-Rail,BD1 5HQ
"Department for Business, Innovation and Skills",UK Shared Business Services Ltd,08/11/2022,T&S - Public Transport,Payroll,Corporate Travel Management (North) Ltd,99835409,0.25,20/10/2022---Rail Fee,BD1 5HQ
"Department for Business, Innovation and Skills",UK Shared Business Services Ltd,08/11/2022,T&S - Public Transport,Payroll,Corporate Travel Management (North) Ltd,99835409,48.00,20/10/2022-Swindon (wilts)-London Paddington-Rail,BD1 5HQ
"Department for Business, Innovation and Skills",UK Shared Business Services Ltd,08/11/2022,T&S - Public Transport,Procurement Policy & Strategy,Corporate Travel Management (North) Ltd,99835409,0.25,18/10/2022---Rail Fee,BD1 5HQ
"Department for Business, Innovation and Skills",UK Shared Business Services Ltd,08/11/2022,T&S - Public Transport,Procurement Policy & Strategy,Corporate Travel Management (North) Ltd,99835409,40.70,18/10/2022-Cathays-Swindon-Rail,BD1 5HQ
"Department for Business, Innovation and Skills",UK Shared Business Services Ltd,08/11/2022,T&S - Public Transport,Project Office,Corporate Travel Management (North) Ltd,99835409,5.00,11/08/2022---Rail Fee,BD1 5HQ
"Department for Business, Innovation and Skills",UK Shared Business Services Ltd,08/11/2022,T&S - Public Transport,Project Office,Corporate Travel Management (North) Ltd,99835409,-30.00,11/08/2022-Swindon (wilts)-Newport Gwent-Rail,BD1 5HQ
"Department for Business, Innovation and Skills",UK Shared Business Services Ltd,08/11/2022,T&S - Public Transport,"Risk, Information & Security Compliance",Corporate Travel Management (North) Ltd,99835409,0.25,12/10/2022---Rail Fee,BD1 5HQ
"Department for Business, Innovation and Skills",UK Shared Business Services Ltd,08/11/2022,T&S - Public Transport,"Risk, Information & Security Compliance",Corporate Travel Management (North) Ltd,99835409,109.90,12/10/2022-Chippenham-London Bridge-Rail,BD1 5HQ
"Department for Business, Innovation and Skills",UK Shared Business Services Ltd,08/11/2022,T&S - Public Transport,"Risk, Information & Security Compliance",Corporate Travel Management (North) Ltd,99835409,0.25,12/10/2022---Rail Fee,BD1 5HQ
"Department for Business, Innovation and Skills",UK Shared Business Services Ltd,08/11/2022,T&S - Public Transport,"Risk, Information & Security Compliance",Corporate Travel Management (North) Ltd,99835409,109.90,12/10/2022-Chippenham-London Bridge-Rail,BD1 5HQ
"Department for Business, Innovation and Skills",UK Shared Business Services Ltd,08/11/2022,T&S - Public Transport,SIAM,Corporate Travel Management (North) Ltd,99835409,0.25,13/10/2022---Rail Fee,BD1 5HQ
"Department for Business, Innovation and Skills",UK Shared Business Services Ltd,08/11/2022,T&S - Public Transport,SIAM,Corporate Travel Management (North) Ltd,99835409,40.70,13/10/2022-Cardiff Central-Swindon-Rail,BD1 5HQ
"Department for Business, Innovation and Skills",UK Shared Business Services Ltd,08/11/2022,T&S - Public Transport,SIAM,Corporate Travel Management (North) Ltd,99835409,0.25,13/10/2022---Rail Fee,BD1 5HQ
"Department for Business, Innovation and Skills",UK Shared Business Services Ltd,08/11/2022,T&S - Public Transport,SIAM,Corporate Travel Management (North) Ltd,99835409,40.70,13/10/2022-Cardiff Central-Swindon-Rail,BD1 5HQ
"Department for Business, Innovation and Skills",UK Shared Business Services Ltd,08/11/2022,Staff Training,HRSD Recoverables,ASK Europe PLC,99835414,840.00,Training,MK43 0BT
"Department for Business, Innovation and Skills",UK Shared Business Services Ltd,08/11/2022,Staff Training,HRSD Recoverables,ASK Europe PLC,99835417,504.00,Training,MK43 0BT
"Department for Business, Innovation and Skills",UK Shared Business Services Ltd,08/11/2022,Staff Training,HRSD Recoverables,ASK Europe PLC,99835419,840.00,Training,MK43 0BT
"Department for Business, Innovation and Skills",UK Shared Business Services Ltd,08/11/2022,Staff Training,HRSD Recoverables,The Chartered Institute of Payroll Professionals (CIPP),99835453,140.00,Training,B90 4ZL
"Department for Business, Innovation and Skills",UK Shared Business Services Ltd,09/11/2022,Contract Staff,People,Alexander Mann Solutions Ltd,99822343,"3,848.22",Recruitment Services,EC2N 3AQ
"Department for Business, Innovation and Skills",UK Shared Business Services Ltd,09/11/2022,Staff Training,Resourcing,Bespoke Professional Development and Training Ltd,99828181,"2,016.00",Training,TS9 5JZ
"Department for Business, Innovation and Skills",UK Shared Business Services Ltd,09/11/2022,Computer Software Licences,ERP Support,Oracle Corporation UK Ltd,99835835,"30,000.13",PaaS and IaaS Universal Credits - May 22 - July 22,RG6 1RA
"Department for Business, Innovation and Skills",UK Shared Business Services Ltd,09/11/2022,Staff Training,HRSD Recoverables,ASK Europe PLC,99835867,840.00,Training,MK43 0BT
"Department for Business, Innovation and Skills",UK Shared Business Services Ltd,09/11/2022,Conferences & Seminars,Project Office,Unspecified,99836157,210.00,Conference/Course Fees (Actuals),HOME
"Department for Business, Innovation and Skills",UK Shared Business Services Ltd,09/11/2022,UK - Professional Memberships & Subscriptions,Corporate Commercial,Unspecified,99836158,212.00,Professional Subscriptions (Actuals),HOME
"Department for Business, Innovation and Skills",UK Shared Business Services Ltd,09/11/2022,UK - Professional Memberships & Subscriptions,Accounting,Unspecified,99836159,175.00,Professional Subscriptions (Actuals),HOME
"Department for Business, Innovation and Skills",UK Shared Business Services Ltd,09/11/2022,Computer Software Licences,SHARP,Oracle Corporation UK Ltd,99836286,-340.96,Computer Consumables,RG6 1RA
"Department for Business, Innovation and Skills",UK Shared Business Services Ltd,09/11/2022,Computer Software Licences,SHARP,Oracle Corporation UK Ltd,99836287,340.96,Computer Consumables,RG6 1RA
"Department for Business, Innovation and Skills",UK Shared Business Services Ltd,09/11/2022,Computer Software Licences,SHARP,Oracle Corporation UK Ltd,99836289,"-2,133.65",Computer Consumables,RG6 1RA
"Department for Business, Innovation and Skills",UK Shared Business Services Ltd,09/11/2022,Computer Software Licences,SHARP,Oracle Corporation UK Ltd,99836289,"-2,133.65",Computer Consumables,RG6 1RA
"Department for Business, Innovation and Skills",UK Shared Business Services Ltd,09/11/2022,Computer Software Licences,SHARP,Oracle Corporation UK Ltd,99836289,"-1,194.84",Computer Consumables,RG6 1RA
"Department for Business, Innovation and Skills",UK Shared Business Services Ltd,09/11/2022,Computer Software Licences,SHARP,Oracle Corporation UK Ltd,99836289,-664.56,Computer Consumables,RG6 1RA
"Department for Business, Innovation and Skills",UK Shared Business Services Ltd,09/11/2022,Computer Software Licences,SHARP,Oracle Corporation UK Ltd,99836289,-271.28,Computer Consumables,RG6 1RA
"Department for Business, Innovation and Skills",UK Shared Business Services Ltd,09/11/2022,Computer Software Licences,SHARP,Oracle Corporation UK Ltd,99836289,-136.55,Computer Consumables,RG6 1RA
"Department for Business, Innovation and Skills",UK Shared Business Services Ltd,09/11/2022,Computer Software Licences,SHARP,Oracle Corporation UK Ltd,99836289,"-4,267.30",Computer Consumables,RG6 1RA
"Department for Business, Innovation and Skills",UK Shared Business Services Ltd,09/11/2022,Computer Software Licences,SHARP,Oracle Corporation UK Ltd,99836289,"-2,321.68",Computer Consumables,RG6 1RA
"Department for Business, Innovation and Skills",UK Shared Business Services Ltd,09/11/2022,Computer Software Licences,SHARP,Oracle Corporation UK Ltd,99836289,-376.49,Computer Consumables,RG6 1RA
"Department for Business, Innovation and Skills",UK Shared Business Services Ltd,09/11/2022,Computer Software Licences,SHARP,Oracle Corporation UK Ltd,99836291,"13,500.00",Computer Consumables,RG6 1RA
"Department for Business, Innovation and Skills",UK Shared Business Services Ltd,10/11/2022,Insurance,Corporate Finance,Marsh Ltd,99791133,"1,091.40",Financial Services,NR7 7BH
"Department for Business, Innovation and Skills",UK Shared Business Services Ltd,10/11/2022,Insurance,Corporate Finance,Marsh Ltd,99791133,"4,391.00",Financial Services,NR7 7BH
"Department for Business, Innovation and Skills",UK Shared Business Services Ltd,10/11/2022,Computer Software Licences,SHARP,Oracle Corporation UK Ltd,99806010,"2,133.65",Computer Consumables,RG6 1RA
"Department for Business, Innovation and Skills",UK Shared Business Services Ltd,10/11/2022,Computer Software Licences,SHARP,Oracle Corporation UK Ltd,99806010,"1,189.10",Computer Consumables,RG6 1RA
"Department for Business, Innovation and Skills",UK Shared Business Services Ltd,10/11/2022,Computer Software Licences,SHARP,Oracle Corporation UK Ltd,99806010,"4,779.38",Computer Consumables,RG6 1RA
"Department for Business, Innovation and Skills",UK Shared Business Services Ltd,10/11/2022,Computer Software Licences,SHARP,Oracle Corporation UK Ltd,99806010,"1,024.15",Computer Consumables,RG6 1RA
"Department for Business, Innovation and Skills",UK Shared Business Services Ltd,10/11/2022,Computer Software Licences,SHARP,Oracle Corporation UK Ltd,99806010,"4,812.76",Computer Consumables,RG6 1RA
"Department for Business, Innovation and Skills",UK Shared Business Services Ltd,10/11/2022,Computer Software Licences,SHARP,Oracle Corporation UK Ltd,99806010,"4,812.76",Computer Consumables,RG6 1RA
"Department for Business, Innovation and Skills",UK Shared Business Services Ltd,10/11/2022,Computer Software Licences,SHARP,Oracle Corporation UK Ltd,99806010,"4,812.75",Computer Consumables,RG6 1RA
"Department for Business, Innovation and Skills",UK Shared Business Services Ltd,10/11/2022,Computer Software Licences,SHARP,Oracle Corporation UK Ltd,99806010,"1,024.15",Computer Consumables,RG6 1RA
"Department for Business, Innovation and Skills",UK Shared Business Services Ltd,10/11/2022,Computer Software Licences,SHARP,Oracle Corporation UK Ltd,99806010,"4,129.66",Computer Consumables,RG6 1RA
"Department for Business, Innovation and Skills",UK Shared Business Services Ltd,10/11/2022,Computer Software Licences,SHARP,Oracle Corporation UK Ltd,99806010,136.13,Computer Consumables,RG6 1RA
"Department for Business, Innovation and Skills",UK Shared Business Services Ltd,10/11/2022,Computer Software Licences,SHARP,Oracle Corporation UK Ltd,99806010,"2,133.65",Computer Consumables,RG6 1RA
"Department for Business, Innovation and Skills",UK Shared Business Services Ltd,10/11/2022,Computer Software Licences,SHARP,Oracle Corporation UK Ltd,99806010,"4,129.66",Computer Consumables,RG6 1RA
"Department for Business, Innovation and Skills",UK Shared Business Services Ltd,10/11/2022,Computer Software Licences,SHARP,Oracle Corporation UK Ltd,99806010,5.52,Computer Consumables,RG6 1RA
"Department for Business, Innovation and Skills",UK Shared Business Services Ltd,10/11/2022,Computer Software Licences,SHARP,Oracle Corporation UK Ltd,99806010,2.06,Computer Consumables,RG6 1RA
"Department for Business, Innovation and Skills",UK Shared Business Services Ltd,10/11/2022,Computer Software Licences,SHARP,Oracle Corporation UK Ltd,99806010,"2,481.79",Computer Consumables,RG6 1RA
"Department for Business, Innovation and Skills",UK Shared Business Services Ltd,10/11/2022,Computer Software Licences,SHARP,Oracle Corporation UK Ltd,99806010,"2,872.86",Computer Consumables,RG6 1RA
"Department for Business, Innovation and Skills",UK Shared Business Services Ltd,10/11/2022,Computer Software Licences,SHARP,Oracle Corporation UK Ltd,99806010,"1,194.84",Computer Consumables,RG6 1RA
"Department for Business, Innovation and Skills",UK Shared Business Services Ltd,10/11/2022,Computer Software Licences,SHARP,Oracle Corporation UK Ltd,99806010,682.76,Computer Consumables,RG6 1RA
"Department for Business, Innovation and Skills",UK Shared Business Services Ltd,10/11/2022,Computer Software Licences,SHARP,Oracle Corporation UK Ltd,99806010,273.11,Computer Consumables,RG6 1RA
"Department for Business, Innovation and Skills",UK Shared Business Services Ltd,10/11/2022,Computer Software Licences,SHARP,Oracle Corporation UK Ltd,99806010,204.83,Computer Consumables,RG6 1RA
"Department for Business, Innovation and Skills",UK Shared Business Services Ltd,10/11/2022,Computer Software Licences,SHARP,Oracle Corporation UK Ltd,99806010,"4,267.31",Computer Consumables,RG6 1RA
"Department for Business, Innovation and Skills",UK Shared Business Services Ltd,10/11/2022,Computer Software Licences,SHARP,Oracle Corporation UK Ltd,99806010,"4,643.34",Computer Consumables,RG6 1RA
"Department for Business, Innovation and Skills",UK Shared Business Services Ltd,10/11/2022,Computer Software Licences,SHARP,Oracle Corporation UK Ltd,99806010,"1,129.39",Computer Consumables,RG6 1RA
"Department for Business, Innovation and Skills",UK Shared Business Services Ltd,10/11/2022,Contract Staff,Project Office,Alexander Mann Solutions Ltd,99825347,"3,649.14",Recruitment Services,EC2N 3AQ
"Department for Business, Innovation and Skills",UK Shared Business Services Ltd,10/11/2022,Contract Staff,Project Office,Alexander Mann Solutions Ltd,99830114,"3,649.14",Recruitment Services,EC2N 3AQ
"Department for Business, Innovation and Skills",UK Shared Business Services Ltd,10/11/2022,Recruitment Costs,People,Onefix Recruitment Ltd,99834199,360.00,Recruitment Services,PO3 5EJ
"Department for Business, Innovation and Skills",UK Shared Business Services Ltd,10/11/2022,Consultancy Services,Production Services,Phoenix Software Ltd,99834216,"2,400.00",Computer Consumables,YO42 1NS
"Department for Business, Innovation and Skills",UK Shared Business Services Ltd,10/11/2022,Consultancy Services,Production Services,Phoenix Software Ltd,99834216,"1,200.00",Computer Consumables,YO42 1NS
"Department for Business, Innovation and Skills",UK Shared Business Services Ltd,10/11/2022,Consultancy Services,Production Services,Phoenix Software Ltd,99834216,"2,400.00",Computer Consumables,YO42 1NS
"Department for Business, Innovation and Skills",UK Shared Business Services Ltd,10/11/2022,Staff Training,HRSD Recoverables,ASK Europe PLC,99834858,840.00,Training,MK43 0BT
"Department for Business, Innovation and Skills",UK Shared Business Services Ltd,10/11/2022,Staff Training,HRSD Recoverables,ASK Europe PLC,99834859,840.00,Training,MK43 0BT
"Department for Business, Innovation and Skills",UK Shared Business Services Ltd,10/11/2022,Mobile Phone Costs,Production Services,Telefonica UK Ltd (O2),99836243,"1,896.56",SR 11366910 LINE RENTAL,SMARTFORM
"Department for Business, Innovation and Skills",UK Shared Business Services Ltd,10/11/2022,Staff Training,HRSD Recoverables,Feldman Ltd T/A Brian Feldman and Associates,99837547,780.00,Training,SW15 5RH
"Department for Business, Innovation and Skills",UK Shared Business Services Ltd,11/11/2022,Data Storage & Recovery,Finance Operations 1,Restore plc,99836255,967.74,Computing Services,RH1 5DY
"Department for Business, Innovation and Skills",UK Shared Business Services Ltd,11/11/2022,Staff Training,HRSD Recoverables,ASK Europe PLC,99838002,840.00,Training,MK43 0BT
"Department for Business, Innovation and Skills",UK Shared Business Services Ltd,11/11/2022,Staff Training,HRSD Recoverables,ASK Europe PLC,99838140,504.00,Training,MK43 0BT
"Department for Business, Innovation and Skills",UK Shared Business Services Ltd,11/11/2022,Computer Software,Production Services,Avolution (UK) Ltd,99838251,"1,918.80",Computing Software,EC4A 2DQ
"Department for Business, Innovation and Skills",UK Shared Business Services Ltd,11/11/2022,Computer Software,Production Services,Avolution (UK) Ltd,99838251,"1,137.60",Computing Software,EC4A 2DQ
"Department for Business, Innovation and Skills",UK Shared Business Services Ltd,11/11/2022,Computer Software,Production Services,Avolution (UK) Ltd,99838251,"1,844.04",Computing Software,EC4A 2DQ
"Department for Business, Innovation and Skills",UK Shared Business Services Ltd,11/11/2022,Computer Software,Production Services,Avolution (UK) Ltd,99838251,"19,440.00",Computing Software,EC4A 2DQ
"Department for Business, Innovation and Skills",UK Shared Business Services Ltd,11/11/2022,Computer Software,Production Services,Avolution (UK) Ltd,99838251,"10,054.80",Computing Software,EC4A 2DQ
"Department for Business, Innovation and Skills",UK Shared Business Services Ltd,11/11/2022,Health & Safety (inc. Medicals & Opticians),Accounting,Unspecified,99838310,55.00,Medical Fees & Vaccinations (Actuals),HOME
"Department for Business, Innovation and Skills",UK Shared Business Services Ltd,11/11/2022,T&S - Accommodation,People,Unspecified,99838312,217.60,Accommodation - Hotels Elsewhere Actuals,HOME
"Department for Business, Innovation and Skills",UK Shared Business Services Ltd,11/11/2022,T&S - Subsistence,People,Unspecified,99838312,2.75,Breakfast (Actuals),HOME
"Department for Business, Innovation and Skills",UK Shared Business Services Ltd,11/11/2022,T&S - Subsistence,People,Unspecified,99838312,26.28,Evening Meal (Actuals),HOME
"Department for Business, Innovation and Skills",UK Shared Business Services Ltd,11/11/2022,T&S - Vehicle Hire,People,Unspecified,99838312,108.00,Vehicle Hire/Rental/Fuel (Actuals),HOME
"Department for Business, Innovation and Skills",UK Shared Business Services Ltd,14/11/2022,Health & Safety (inc. Medicals & Opticians),Corporate HR,Everwell Occupational Health Ltd,99049322,210.00,Professional Services,CW11 3AE
"Department for Business, Innovation and Skills",UK Shared Business Services Ltd,14/11/2022,Contract Staff,Corporate Commercial,Alexander Mann Solutions Ltd,99790037,"6,303.12",Recruitment Services,EC2N 3AQ
"Department for Business, Innovation and Skills",UK Shared Business Services Ltd,14/11/2022,Contract Staff,Corporate Commercial,Alexander Mann Solutions Ltd,99802425,"5,672.81",Recruitment Services,EC2N 3AQ
"Department for Business, Innovation and Skills",UK Shared Business Services Ltd,14/11/2022,Contract Staff,Corporate Commercial,Alexander Mann Solutions Ltd,99813229,"5,042.50",Recruitment Services,EC2N 3AQ
"Department for Business, Innovation and Skills",UK Shared Business Services Ltd,14/11/2022,Contract Staff,Corporate Commercial,Alexander Mann Solutions Ltd,99822353,"5,672.81",Recruitment Services,EC2N 3AQ
"Department for Business, Innovation and Skills",UK Shared Business Services Ltd,14/11/2022,Other Staff Benefits,People,Amazon EU SARL,99831320,300.00,ZZ-Employee Benefits,EC2A 2FA
"Department for Business, Innovation and Skills",UK Shared Business Services Ltd,14/11/2022,Other Staff Benefits,People,Amazon EU SARL,99831956,75.00,ZZ-Employee Benefits,EC2A 2FA
"Department for Business, Innovation and Skills",UK Shared Business Services Ltd,14/11/2022,PAYE Payable Salaries,Balance Sheet,HM Revenue & Customs,99832667,"199,701.54",HMRC monthly deductions for SSC October 2022,3RD PARTY PAYME
"Department for Business, Innovation and Skills",UK Shared Business Services Ltd,14/11/2022,NI Payable Salaries,Balance Sheet,HM Revenue & Customs,99832668,"294,596.90",HMRC monthly deductions for SSC October 2022,3RD PARTY PAYME
"Department for Business, Innovation and Skills",UK Shared Business Services Ltd,14/11/2022,Student Loans,Balance Sheet,HM Revenue & Customs,99832669,"2,843.00",HMRC monthly deductions for SSC October 2022,3RD PARTY PAYME
"Department for Business, Innovation and Skills",UK Shared Business Services Ltd,14/11/2022,Apprenticeship Levy,Corporate HR,HM Revenue & Customs,99832670,"6,992.00",HMRC monthly deductions for SSC October 2022,3RD PARTY PAYME
"Department for Business, Innovation and Skills",UK Shared Business Services Ltd,14/11/2022,GPC Clearing - SSC,Balance Sheet,Unspecified,99834506,-300.12,Unspecified,HOME
"Department for Business, Innovation and Skills",UK Shared Business Services Ltd,14/11/2022,GPC Sundry Expenditure,D&I Management,Unspecified,99834506,300.12,GPC_Miscellaneous GPC Expenditure,HOME
"Department for Business, Innovation and Skills",UK Shared Business Services Ltd,14/11/2022,Nursery Deductions,Balance Sheet,EDENRED (UK GROUP) LTD,99836848,"1,324.00",SR11370230 CHILDCARE VOUCHERS,SW1V 2RS
"Department for Business, Innovation and Skills",UK Shared Business Services Ltd,14/11/2022,Nursery Deductions,Balance Sheet,EDENRED (UK GROUP) LTD,99836849,-1.00,SR11370230 CREDIT ADJUSTMENT ,SW1V 2RS
"Department for Business, Innovation and Skills",UK Shared Business Services Ltd,14/11/2022,Contract Staff,Production Services,Alexander Mann Solutions Ltd,99836879,"3,465.30",Recruitment Services,EC2N 3AQ
"Department for Business, Innovation and Skills",UK Shared Business Services Ltd,14/11/2022,Contract Staff,D&I Management,Alexander Mann Solutions Ltd,99836882,"2,648.52",Recruitment Services,EC2N 3AQ
"Department for Business, Innovation and Skills",UK Shared Business Services Ltd,14/11/2022,Contract Staff,Production Services,Alexander Mann Solutions Ltd,99836885,"3,880.37",Recruitment Services,EC2N 3AQ
"Department for Business, Innovation and Skills",UK Shared Business Services Ltd,14/11/2022,GPC Clearing - SSC,Balance Sheet,Unspecified,99836945,-210.00,Unspecified,HOME
"Department for Business, Innovation and Skills",UK Shared Business Services Ltd,14/11/2022,Staff Training,D&I Management,Unspecified,99836945,210.00,GPC_Training,HOME
"Department for Business, Innovation and Skills",UK Shared Business Services Ltd,14/11/2022,T&S - Public Transport,Partnership Management,Unspecified,99836946,51.00,Public Transport - Taxi Fare (Actuals),HOME
"Department for Business, Innovation and Skills",UK Shared Business Services Ltd,14/11/2022,T&S - Subsistence,Partnership Management,Unspecified,99836946,4.33,Evening Meal (Actuals),HOME
"Department for Business, Innovation and Skills",UK Shared Business Services Ltd,14/11/2022,T&S - Subsistence,Partnership Management,Unspecified,99836946,4.99,Lunch (Actuals),HOME
"Department for Business, Innovation and Skills",UK Shared Business Services Ltd,14/11/2022,T&S - Parking Tolls Congestion Charges,UK SBS Data,Unspecified,99836947,11.00,"Parking, Tolls, Congestion Charge",HOME
"Department for Business, Innovation and Skills",UK Shared Business Services Ltd,14/11/2022,Contract Staff,People,Alexander Mann Solutions Ltd,99838641,"1,890.19",Recruitment Services,EC2N 3AQ
"Department for Business, Innovation and Skills",UK Shared Business Services Ltd,14/11/2022,Contract Staff,People,Alexander Mann Solutions Ltd,99838644,"11,544.66",Recruitment Services,EC2N 3AQ
"Department for Business, Innovation and Skills",UK Shared Business Services Ltd,14/11/2022,Contract Staff,SHARP,Alexander Mann Solutions Ltd,99838658,"3,387.66",Recruitment Services,EC2N 3AQ
"Department for Business, Innovation and Skills",UK Shared Business Services Ltd,14/11/2022,Contract Staff,Production Services,Alexander Mann Solutions Ltd,99838672,"3,079.62",Recruitment Services,EC2N 3AQ
"Department for Business, Innovation and Skills",UK Shared Business Services Ltd,15/11/2022,Voluntary Deductions,Balance Sheet,Civil Service Benevolent Fund,99832671,18.00,SSC THIRD PARTY PAYMENTS October2022,SM3 8DY
"Department for Business, Innovation and Skills",UK Shared Business Services Ltd,15/11/2022,Union Deductions,Balance Sheet,PCS Union,99832672,907.73,SSC THIRD PARTY PAYMENTS October2022,SW11 2LN
"Department for Business, Innovation and Skills",UK Shared Business Services Ltd,15/11/2022,Voluntary Deductions,Balance Sheet,Swindon Office Sports and Social Club,99832673,178.00,SSC THIRD PARTY PAYMENTS October2022,SN2 1EU
"Department for Business, Innovation and Skills",UK Shared Business Services Ltd,15/11/2022,Ees Pension Deductions - JSS,Balance Sheet,RCPS Pension,99832674,"86,078.13",RCPS monthly contributions for SSC October2022,SN2 1UY.
"Department for Business, Innovation and Skills",UK Shared Business Services Ltd,15/11/2022,Ers Pension Deductions - JSS,Balance Sheet,RCPS Pension,99832675,"386,602.73",RCPS monthly contributions for SSC October2022,SN2 1UY.
"Department for Business, Innovation and Skills",UK Shared Business Services Ltd,15/11/2022,Other Pension Deductions,Balance Sheet,Scottish Widows,99832676,100.00,SSC THIRD PARTY PAYMENTS October2022,EH16 5BU
"Department for Business, Innovation and Skills",UK Shared Business Services Ltd,15/11/2022,Partnership Pension Deductions,Balance Sheet,Scottish Widows,99832677,"3,791.15",SSC THIRD PARTY PAYMENTS October2022,EH16 5BU
"Department for Business, Innovation and Skills",UK Shared Business Services Ltd,15/11/2022,Partnership Pension Deductions,Balance Sheet,Standard Life Assurance Ltd,99832678,391.31,SSC THIRD PARTY PAYMENTS October2022,EH1 2DH
"Department for Business, Innovation and Skills",UK Shared Business Services Ltd,15/11/2022,Ees Pension Deductions - MRC,Balance Sheet,JLT Pensions Administration Ltd T/A JLT Employee Benefits,99832679,"3,734.08",SSC THIRD PARTY PAYMENTS October2022,PRINCIPAL SECTI
"Department for Business, Innovation and Skills",UK Shared Business Services Ltd,15/11/2022,Ers Pension Deductions - MRC,Balance Sheet,JLT Pensions Administration Ltd T/A JLT Employee Benefits,99832680,"9,708.59",SSC THIRD PARTY PAYMENTS October2022,PRINCIPAL SECTI
"Department for Business, Innovation and Skills",UK Shared Business Services Ltd,15/11/2022,Voluntary Deductions,Balance Sheet,BHCA (Services) Ltd,99832681,59.15,SSC THIRD PARTY PAYMENTS October2022,NN14 1UE
"Department for Business, Innovation and Skills",UK Shared Business Services Ltd,15/11/2022,Ees Pension Deductions - MyCSP,Balance Sheet,Cabinet Office RM Shared Services,99832682,145.36,UKSBS THIRD PARTY PAYMENTS October 2022,FY5 3TA
"Department for Business, Innovation and Skills",UK Shared Business Services Ltd,15/11/2022,Ers Pension Deductions - MyCSP,Balance Sheet,Cabinet Office RM Shared Services,99832683,722.78,UKSBS THIRD PARTY PAYMENTS October 2022,FY5 3TA
"Department for Business, Innovation and Skills",UK Shared Business Services Ltd,15/11/2022,Contract Staff,Project Office,Alexander Mann Solutions Ltd,99838636,"7,298.28",Recruitment Services,EC2N 3AQ
"Department for Business, Innovation and Skills",UK Shared Business Services Ltd,15/11/2022,Staff Training,HRSD Recoverables,ASK Europe PLC,99838822,504.00,Training,MK43 0BT
"Department for Business, Innovation and Skills",UK Shared Business Services Ltd,15/11/2022,Staff Training,HRSD Recoverables,ASK Europe PLC,99838824,840.00,Training,MK43 0BT
"Department for Business, Innovation and Skills",UK Shared Business Services Ltd,15/11/2022,Health & Safety (inc. Medicals & Opticians),HR Training & Specialists,Unspecified,99839982,12.00,Medical Fees & Vaccinations (Actuals),HOME
"Department for Business, Innovation and Skills",UK Shared Business Services Ltd,15/11/2022,T&S - Mileage,D&I Infrastructure & Network Services,Unspecified,99839983,53.00,Mileage - Car (excl Home to Office),HOME
"Department for Business, Innovation and Skills",UK Shared Business Services Ltd,15/11/2022,T&S - Subsistence,D&I Infrastructure & Network Services,Unspecified,99839983,6.99,Lunch (Actuals),HOME
"Department for Business, Innovation and Skills",UK Shared Business Services Ltd,16/11/2022,Consultancy Services,Interfaces & API Mgmt,Software AG (UK) Ltd,99820660,"21,911.76",Computer Consumables,DE24 8BY
"Department for Business, Innovation and Skills",UK Shared Business Services Ltd,16/11/2022,Consultancy Services,Interfaces & API Mgmt,Software AG (UK) Ltd,99834387,"9,760.24",Computer Consumables,DE24 8BY
"Department for Business, Innovation and Skills",UK Shared Business Services Ltd,16/11/2022,Staff Training,Corporate HR,Sponge UK Ltd,99835359,"36,840.00",Computer Consumables,PL6 8BT
"Department for Business, Innovation and Skills",UK Shared Business Services Ltd,16/11/2022,T&S - Vehicle Hire,Contact Centres,Enterprise Rent-A-Car UK Ltd,99839394,48.35,11/10/22-12/10/22,GL2 5DA
"Department for Business, Innovation and Skills",UK Shared Business Services Ltd,16/11/2022,T&S - Vehicle Hire,Contact Centres,Enterprise Rent-A-Car UK Ltd,99839394,9.67,SR11373472 & SR11373474 CAR RENTAL,GL2 5DA
"Department for Business, Innovation and Skills",UK Shared Business Services Ltd,16/11/2022,T&S - Vehicle Hire,Finance Services,Enterprise Rent-A-Car UK Ltd,99839394,129.06,7/11/22-10/11/22,GL2 5DA
"Department for Business, Innovation and Skills",UK Shared Business Services Ltd,16/11/2022,T&S - Vehicle Hire,Finance Services,Enterprise Rent-A-Car UK Ltd,99839394,25.81,SR11373472 & SR11373474 CAR RENTAL,GL2 5DA
"Department for Business, Innovation and Skills",UK Shared Business Services Ltd,16/11/2022,Staff Training,HRSD Recoverables,ASK Europe PLC,99839481,840.00,Training,MK43 0BT
"Department for Business, Innovation and Skills",UK Shared Business Services Ltd,16/11/2022,Staff Training,HRSD Recoverables,Provek Ltd,99840220,"1,620.00",Training,RG19 4LW
"Department for Business, Innovation and Skills",UK Shared Business Services Ltd,16/11/2022,Staff Training,HRSD Recoverables,Provek Ltd,99840221,"1,620.00",Training,RG19 4LW
"Department for Business, Innovation and Skills",UK Shared Business Services Ltd,16/11/2022,Staff Training,HRSD Recoverables,Provek Ltd,99840222,"1,620.00",Training,RG19 4LW
"Department for Business, Innovation and Skills",UK Shared Business Services Ltd,16/11/2022,T&S - Public Transport,Operational Excellence,Unspecified,99840399,20.10,Public Transport - Taxi Fare (Actuals),HOME
"Department for Business, Innovation and Skills",UK Shared Business Services Ltd,16/11/2022,Health & Safety (inc. Medicals & Opticians),UK SBS Data,Unspecified,99840400,12.00,Medical Fees & Vaccinations (Actuals),HOME
"Department for Business, Innovation and Skills",UK Shared Business Services Ltd,16/11/2022,T&S - Mileage,Procurement Policy & Strategy,Unspecified,99840401,112.60,Mileage - Car (excl Home to Office),HOME
"Department for Business, Innovation and Skills",UK Shared Business Services Ltd,17/11/2022,Agency Staff,ROE Application Upgrade,Alexander Mann Solutions Ltd,99838638,"4,090.44",Recruitment Services,EC2N 3AQ
"Department for Business, Innovation and Skills",UK Shared Business Services Ltd,17/11/2022,Contract Staff,Production Services,Alexander Mann Solutions Ltd,99838655,"2,740.74",Recruitment Services,EC2N 3AQ
"Department for Business, Innovation and Skills",UK Shared Business Services Ltd,17/11/2022,Telecoms - Land Line Rental,Production Services,British Telecom Plc (BT),99840792,"12,705.13",SR11374592 REGULAR CHARGES 1/11/22-30/11/22,S98 1BT
"Department for Business, Innovation and Skills",UK Shared Business Services Ltd,17/11/2022,Telecoms - Land Line Rental,Production Services,British Telecom Plc (BT),99840794,406.01,SR11374592 REGULAR CHARGES 1/11/22-31/1/23,E1 8EE
"Department for Business, Innovation and Skills",UK Shared Business Services Ltd,17/11/2022,Recruitment Costs,Production Services,Robert Half Ltd,99840805,"6,336.00",Recruitment Services,B37 7GN
"Department for Business, Innovation and Skills",UK Shared Business Services Ltd,17/11/2022,T&S - Other Charges,Resourcing,Unspecified,99840842,116.93,Home-working Equipment,HOME
"Department for Business, Innovation and Skills",UK Shared Business Services Ltd,18/11/2022,Hardware/Software Maintenance,Production Services,KTSL Ltd,99835354,585.00,Computer Consumables,SN13 9RS
"Department for Business, Innovation and Skills",UK Shared Business Services Ltd,18/11/2022,T&S - Other Charges,HR Ops,Unspecified,99838311,142.90,Home-working Equipment,HOME
"Department for Business, Innovation and Skills",UK Shared Business Services Ltd,18/11/2022,Computing Consumables,Production Services,Probrand Ltd,99839992,"9,329.40",Computer Consumables,SMARTFORM
"Department for Business, Innovation and Skills",UK Shared Business Services Ltd,18/11/2022,Staff Training,HRSD Recoverables,ASK Europe PLC,99841100,840.00,Training,MK43 0BT
"Department for Business, Innovation and Skills",UK Shared Business Services Ltd,18/11/2022,Recruitment Costs,Corporate HR,Agenda Resource Management Ltd,99841513,764.29,Professional Services,HU12 8YJ
"Department for Business, Innovation and Skills",UK Shared Business Services Ltd,18/11/2022,Recruitment Costs,Corporate HR,Agenda Resource Management Ltd,99841513,499.42,Professional Services,HU12 8YJ
"Department for Business, Innovation and Skills",UK Shared Business Services Ltd,18/11/2022,Staff Training,HRSD Recoverables,ASK Europe PLC,99841637,840.00,Training,MK43 0BT
"Department for Business, Innovation and Skills",UK Shared Business Services Ltd,18/11/2022,Staff Training,HRSD Recoverables,ASK Europe PLC,99841641,504.00,Training,MK43 0BT
"Department for Business, Innovation and Skills",UK Shared Business Services Ltd,18/11/2022,T&S - Other Charges,Accounting,Unspecified,99841732,31.78,Home-working Equipment,HOME
"Department for Business, Innovation and Skills",UK Shared Business Services Ltd,18/11/2022,UK - Professional Memberships & Subscriptions,Accounting,Unspecified,99841732,329.00,Professional Subscriptions (Actuals),HOME
"Department for Business, Innovation and Skills",UK Shared Business Services Ltd,18/11/2022,T&S - Parking Tolls Congestion Charges,Operational Excellence,Unspecified,99841733,18.00,"Parking, Tolls, Congestion Charge",HOME
"Department for Business, Innovation and Skills",UK Shared Business Services Ltd,18/11/2022,T&S - Subsistence,Operational Excellence,Unspecified,99841733,53.81,Evening Meal (Actuals),HOME
"Department for Business, Innovation and Skills",UK Shared Business Services Ltd,18/11/2022,T&S - Subsistence,Operational Excellence,Unspecified,99841733,41.53,Lunch (Actuals),HOME
"Department for Business, Innovation and Skills",UK Shared Business Services Ltd,18/11/2022,T&S - Vehicle Hire,Operational Excellence,Unspecified,99841733,30.02,Vehicle Hire/Rental/Fuel (Actuals),HOME
"Department for Business, Innovation and Skills",UK Shared Business Services Ltd,18/11/2022,T&S - Subsistence,Operational Excellence,Unspecified,99841734,64.90,Evening Meal (Actuals),HOME
"Department for Business, Innovation and Skills",UK Shared Business Services Ltd,18/11/2022,T&S - Subsistence,Operational Excellence,Unspecified,99841734,48.03,Lunch (Actuals),HOME
"Department for Business, Innovation and Skills",UK Shared Business Services Ltd,18/11/2022,T&S - Vehicle Hire,Operational Excellence,Unspecified,99841734,83.99,Vehicle Hire/Rental/Fuel (Actuals),HOME
"Department for Business, Innovation and Skills",UK Shared Business Services Ltd,21/11/2022,Staff Training,HRSD Recoverables,ACAS,99835499,270.00,Training,LS1 4AP
"Department for Business, Innovation and Skills",UK Shared Business Services Ltd,21/11/2022,Hardware/Software Maintenance,ISS Recoverable Charges � UKRI,Ogel IT Ltd,99841155,"8,726.01","Technical Assurance, Support and Escalation Services",SG1 2FS
"Department for Business, Innovation and Skills",UK Shared Business Services Ltd,21/11/2022,Hardware/Software Maintenance,ISS Recoverable Charges � UKRI,Ogel IT Ltd,99841157,"8,726.01","Technical Assurance, Support and Escalation Services",SG1 2FS
"Department for Business, Innovation and Skills",UK Shared Business Services Ltd,21/11/2022,Recruitment Costs,Production Services,Skillsbay Ltd,99841269,"5,760.00",Recruitment Services,SW6 3JD
"Department for Business, Innovation and Skills",UK Shared Business Services Ltd,21/11/2022,Recruitment Costs,Production Services,Robert Half Ltd,99841275,"5,400.00",Recruitment Services,B37 7GN
"Department for Business, Innovation and Skills",UK Shared Business Services Ltd,21/11/2022,Recruitment Costs,Production Services,Skillsbay Ltd,99841987,"5,278.80",Recruitment Services,SW6 3JD
"Department for Business, Innovation and Skills",UK Shared Business Services Ltd,21/11/2022,Recruitment Costs,Production Services,Skillsbay Ltd,99841987,0.10,SR 11379050 Permanent Placement Fee for 4399.00 (exlc. VAT). Budget Cost Code : 81124,SW6 3JD
"Department for Business, Innovation and Skills",UK Shared Business Services Ltd,21/11/2022,Recruitment Costs,Production Services,Skillsbay Ltd,99841987,0.50,overbilled,SW6 3JD
"Department for Business, Innovation and Skills",UK Shared Business Services Ltd,21/11/2022,Staff Training,HRSD Recoverables,ASK Europe PLC,99842093,840.00,Training,MK43 0BT
"Department for Business, Innovation and Skills",UK Shared Business Services Ltd,21/11/2022,Staff Training,HRSD Recoverables,ASK Europe PLC,99842094,840.00,Training,MK43 0BT
"Department for Business, Innovation and Skills",UK Shared Business Services Ltd,21/11/2022,Staff Training,HRSD Recoverables,Feldman Ltd T/A Brian Feldman and Associates,99842114,780.00,Training,SW15 5RH
"Department for Business, Innovation and Skills",UK Shared Business Services Ltd,21/11/2022,Staff Training,HRSD Recoverables,Feldman Ltd T/A Brian Feldman and Associates,99842115,390.00,Training,SW15 5RH
"Department for Business, Innovation and Skills",UK Shared Business Services Ltd,22/11/2022,Consultancy Services,"Risk, Information & Security Compliance",Risk Evolves Ltd,99837433,"3,420.00",Consultancy Services,CV31 1XT
"Department for Business, Innovation and Skills",UK Shared Business Services Ltd,22/11/2022,Recruitment Costs,People,Onefix Recruitment Ltd,99841830,360.00,Recruitment Services,PO3 5EJ
"Department for Business, Innovation and Skills",UK Shared Business Services Ltd,22/11/2022,Contract Staff,Production Services,Hays Specialist Recruitment Ltd,99842469,"5,587.20",Recruitment Services,KT3 4QF
"Department for Business, Innovation and Skills",UK Shared Business Services Ltd,22/11/2022,Computer Software Licences,Production Services,Academia Ltd,99842540,"68,546.94",Computer Consumables,HP2 7DW
"Department for Business, Innovation and Skills",UK Shared Business Services Ltd,22/11/2022,Computer Software Licences,Production Services,Phoenix Software Ltd,99842557,"6,245.54",Computer Consumables,YO42 1NS
"Department for Business, Innovation and Skills",UK Shared Business Services Ltd,22/11/2022,Education Fees & Study Materials,Finance Operations 1,Unspecified,99842580,53.00,Educational Materials - Study Books,HOME
"Department for Business, Innovation and Skills",UK Shared Business Services Ltd,22/11/2022,T&S - Mileage,"Risk, Information & Security Compliance",Unspecified,99842581,28.80,Mileage - Car (excl Home to Office),HOME
"Department for Business, Innovation and Skills",UK Shared Business Services Ltd,22/11/2022,T&S - Parking Tolls Congestion Charges,"Risk, Information & Security Compliance",Unspecified,99842581,10.00,"Parking, Tolls, Congestion Charge",HOME
"Department for Business, Innovation and Skills",UK Shared Business Services Ltd,22/11/2022,Staff Training,HRSD Recoverables,ASK Europe PLC,99843216,840.00,Training,MK43 0BT
"Department for Business, Innovation and Skills",UK Shared Business Services Ltd,22/11/2022,Computer Software Licences,Production Services,PageOne Communications Ltd,99843287,189.00,Computer Consumables,TW8 9DF
"Department for Business, Innovation and Skills",UK Shared Business Services Ltd,22/11/2022,Staff Training,HRSD Recoverables,ASK Europe PLC,99843288,504.00,Training,MK43 0BT
"Department for Business, Innovation and Skills",UK Shared Business Services Ltd,22/11/2022,Staff Training,HRSD Recoverables,ASK Europe PLC,99843289,504.00,Training,MK43 0BT
"Department for Business, Innovation and Skills",UK Shared Business Services Ltd,22/11/2022,Staff Training,HRSD Recoverables,ASK Europe PLC,99843291,504.00,Training,MK43 0BT
"Department for Business, Innovation and Skills",UK Shared Business Services Ltd,23/11/2022,Printing & Stationery,Production Services,Konica Minolta Business Solutions (UK) Ltd,99807624,"1,002.35",Computer Consumables,SS14 3AR
"Department for Business, Innovation and Skills",UK Shared Business Services Ltd,23/11/2022,Printing & Stationery,Production Services,Konica Minolta Business Solutions (UK) Ltd,99807624,"2,202.73",Computer Consumables,SS14 3AR
"Department for Business, Innovation and Skills",UK Shared Business Services Ltd,23/11/2022,Printing & Stationery,Production Services,Konica Minolta Business Solutions (UK) Ltd,99808262,"4,182.91",Computer Consumables,SS14 3AR
"Department for Business, Innovation and Skills",UK Shared Business Services Ltd,23/11/2022,Printing & Stationery,Production Services,Konica Minolta Business Solutions (UK) Ltd,99825957,"1,343.04",Computer Consumables,SS14 3AR
"Department for Business, Innovation and Skills",UK Shared Business Services Ltd,23/11/2022,Staff Training,Corporate HR,Blacksheep IT Consulting GmbH,99842065,830.41,Training,3683
"Department for Business, Innovation and Skills",UK Shared Business Services Ltd,23/11/2022,Contract Staff,People,Alexander Mann Solutions Ltd,99842655,"3,848.22",Recruitment Services,EC2N 3AQ
"Department for Business, Innovation and Skills",UK Shared Business Services Ltd,23/11/2022,Contract Staff,SHARP,Alexander Mann Solutions Ltd,99842673,"3,387.66",Recruitment Services,EC2N 3AQ
"Department for Business, Innovation and Skills",UK Shared Business Services Ltd,23/11/2022,Contract Staff,People,Alexander Mann Solutions Ltd,99843729,"2,126.47",Recruitment Services,EC2N 3AQ
"Department for Business, Innovation and Skills",UK Shared Business Services Ltd,23/11/2022,Contract Staff,D&I Management,Alexander Mann Solutions Ltd,99843745,"2,648.52",Recruitment Services,EC2N 3AQ
"Department for Business, Innovation and Skills",UK Shared Business Services Ltd,23/11/2022,Contract Staff,Project Office,Alexander Mann Solutions Ltd,99843763,"3,649.14",Recruitment Services,EC2N 3AQ
"Department for Business, Innovation and Skills",UK Shared Business Services Ltd,23/11/2022,Health & Safety (inc. Medicals & Opticians),UK SBS Data,Unspecified,99843883,9.98,Medical Fees & Vaccinations (Actuals),HOME
"Department for Business, Innovation and Skills",UK Shared Business Services Ltd,23/11/2022,T&S - Other Charges,Finance Operations 1,Unspecified,99843884,34.25,Miscellaneous (Actuals),HOME
"Department for Business, Innovation and Skills",UK Shared Business Services Ltd,23/11/2022,T&S - Subsistence,Finance Operations 1,Unspecified,99843884,60.15,Evening Meal (Actuals),HOME
"Department for Business, Innovation and Skills",UK Shared Business Services Ltd,23/11/2022,T&S - Vehicle Hire,Finance Operations 1,Unspecified,99843884,88.77,Vehicle Hire/Rental/Fuel (Actuals),HOME
"Department for Business, Innovation and Skills",UK Shared Business Services Ltd,23/11/2022,T&S - Other Charges,"Risk, Information & Security Compliance",Unspecified,99843885,36.93,Home-working Equipment,HOME
"Department for Business, Innovation and Skills",UK Shared Business Services Ltd,23/11/2022,T&S - Mileage,Executive Function,Unspecified,99843886,18.00,Mileage - Car (excl Home to Office),HOME
"Department for Business, Innovation and Skills",UK Shared Business Services Ltd,24/11/2022,UK - Professional Memberships & Subscriptions,Payroll,Unspecified,99840402,170.00,Professional Subscriptions (Actuals),HOME
"Department for Business, Innovation and Skills",UK Shared Business Services Ltd,24/11/2022,Contract Staff,Production Services,Alexander Mann Solutions Ltd,99842707,"2,740.74",Recruitment Services,EC2N 3AQ
"Department for Business, Innovation and Skills",UK Shared Business Services Ltd,24/11/2022,Contract Staff,Production Services,Alexander Mann Solutions Ltd,99842710,"3,695.54",Recruitment Services,EC2N 3AQ
"Department for Business, Innovation and Skills",UK Shared Business Services Ltd,24/11/2022,IT / Computing Support Services,Production Services,Park Place Technologies Ltd,99843417,"1,406.61",Computer Consumables,SE10 0ER
"Department for Business, Innovation and Skills",UK Shared Business Services Ltd,24/11/2022,IT / Computing Support Services,Production Services,Park Place Technologies Ltd,99843417,"1,406.60",Computer Consumables,SE10 0ER
"Department for Business, Innovation and Skills",UK Shared Business Services Ltd,24/11/2022,IT / Computing Support Services,Production Services,Park Place Technologies Ltd,99843417,"1,406.60",Computer Consumables,SE10 0ER
"Department for Business, Innovation and Skills",UK Shared Business Services Ltd,24/11/2022,Contract Staff,Production Services,Alexander Mann Solutions Ltd,99843748,"3,465.30",Recruitment Services,EC2N 3AQ
"Department for Business, Innovation and Skills",UK Shared Business Services Ltd,24/11/2022,Legal & Professional Services,Executive Function,Pricewaterhouse Coopers LLP,99844117,"58,800.00",Professional Services,WC2N 6RH
"Department for Business, Innovation and Skills",UK Shared Business Services Ltd,24/11/2022,Consultancy Services,Corporate HR,JobTrolley Ltd,99844131,"3,003.00",Consultancy Services,MK9 1LR
"Department for Business, Innovation and Skills",UK Shared Business Services Ltd,24/11/2022,T&S - Vehicle Hire,Operational Excellence,Enterprise Rent-A-Car UK Ltd,99844300,116.08,14/11/22-18/11/22,GL2 5DA
"Department for Business, Innovation and Skills",UK Shared Business Services Ltd,24/11/2022,T&S - Vehicle Hire,Operational Excellence,Enterprise Rent-A-Car UK Ltd,99844300,23.22,SR11344812 & SR11384816 CAR RENTAL,GL2 5DA
"Department for Business, Innovation and Skills",UK Shared Business Services Ltd,24/11/2022,T&S - Mileage,Executive Function,Unspecified,99844339,23.40,Mileage - Car (excl Home to Office),HOME
"Department for Business, Innovation and Skills",UK Shared Business Services Ltd,24/11/2022,T&S - Parking Tolls Congestion Charges,Executive Function,Unspecified,99844339,25.90,"Parking, Tolls, Congestion Charge",HOME
"Department for Business, Innovation and Skills",UK Shared Business Services Ltd,24/11/2022,T&S - Subsistence,Executive Function,Unspecified,99844339,79.80,Lunch (Actuals),HOME
"Department for Business, Innovation and Skills",UK Shared Business Services Ltd,24/11/2022,T&S - Accommodation,People,Unspecified,99844340,94.50,Accommodation - Hotels Elsewhere Actuals,HOME
"Department for Business, Innovation and Skills",UK Shared Business Services Ltd,24/11/2022,T&S - Subsistence,People,Unspecified,99844340,4.85,Breakfast (Actuals),HOME
"Department for Business, Innovation and Skills",UK Shared Business Services Ltd,24/11/2022,T&S - Vehicle Hire,People,Unspecified,99844340,108.00,Vehicle Hire/Rental/Fuel (Actuals),HOME
"Department for Business, Innovation and Skills",UK Shared Business Services Ltd,24/11/2022,Education Fees & Study Materials,Finance Operations 1,Unspecified,99844341,90.00,Educational Materials - Study Books,HOME
"Department for Business, Innovation and Skills",UK Shared Business Services Ltd,24/11/2022,T&S - Accommodation,People,Unspecified,99844342,89.01,Accommodation - Hotels Elsewhere Actuals,HOME
"Department for Business, Innovation and Skills",UK Shared Business Services Ltd,24/11/2022,T&S - Mileage,People,Unspecified,99844342,211.95,Mileage - Car (excl Home to Office),HOME
"Department for Business, Innovation and Skills",UK Shared Business Services Ltd,24/11/2022,T&S - Subsistence,People,Unspecified,99844342,25.00,Evening Meal (Actuals),HOME
"Department for Business, Innovation and Skills",UK Shared Business Services Ltd,24/11/2022,T&S - Subsistence,People,Unspecified,99844342,21.79,Lunch (Actuals),HOME
"Department for Business, Innovation and Skills",UK Shared Business Services Ltd,24/11/2022,T&S - Parking Tolls Congestion Charges,UK SBS Data,Unspecified,99844343,11.00,"Parking, Tolls, Congestion Charge",HOME
"Department for Business, Innovation and Skills",UK Shared Business Services Ltd,24/11/2022,Recruitment Costs,Production Services,Skillsbay Ltd,99844441,"7,740.00",Recruitment Services,SW6 3JD
"Department for Business, Innovation and Skills",UK Shared Business Services Ltd,25/11/2022,Recruitment Costs,People,Onefix Recruitment Ltd,99842318,930.00,Recruitment Services,PO3 5EJ
"Department for Business, Innovation and Skills",UK Shared Business Services Ltd,25/11/2022,Computing Consumables,Production Services,Probrand Ltd,99844236,"1,170.00",Computer Consumables,SMARTFORM
"Department for Business, Innovation and Skills",UK Shared Business Services Ltd,25/11/2022,Computing Consumables,Production Services,Probrand Ltd,99844236,864.00,Computer Consumables,SMARTFORM
"Department for Business, Innovation and Skills",UK Shared Business Services Ltd,25/11/2022,Computing Consumables,Production Services,Probrand Ltd,99844236,6.00,Computer Consumables,SMARTFORM
"Department for Business, Innovation and Skills",UK Shared Business Services Ltd,25/11/2022,T&S - Mileage,D&I Infrastructure & Network Services,Unspecified,99845660,74.25,Mileage - Car (excl Home to Office),HOME
"Department for Business, Innovation and Skills",UK Shared Business Services Ltd,25/11/2022,UK - Professional Memberships & Subscriptions,Corporate Finance,Unspecified,99845661,329.00,Professional Subscriptions (Actuals),HOME
"Department for Business, Innovation and Skills",UK Shared Business Services Ltd,25/11/2022,Health & Safety (inc. Medicals & Opticians),UK SBS Data,Unspecified,99845662,9.98,Medical Fees & Vaccinations (Actuals),HOME
"Department for Business, Innovation and Skills",UK Shared Business Services Ltd,25/11/2022,T&S - Mileage,Project Office,Unspecified,99845663,46.80,Mileage - Car (excl Home to Office),HOME
"Department for Business, Innovation and Skills",UK Shared Business Services Ltd,25/11/2022,Health & Safety (inc. Medicals & Opticians),Project Office,Unspecified,99845664,80.00,Medical Fees & Vaccinations (Actuals),HOME
"Department for Business, Innovation and Skills",UK Shared Business Services Ltd,25/11/2022,T&S - Other Charges,Operational Assurance,Unspecified,99845665,100.00,Home-working Equipment,HOME
"Department for Business, Innovation and Skills",UK Shared Business Services Ltd,25/11/2022,Health & Safety (inc. Medicals & Opticians),Accounting,Unspecified,99845666,80.00,Medical Fees & Vaccinations (Actuals),HOME
"Department for Business, Innovation and Skills",UK Shared Business Services Ltd,28/11/2022,GPC Clearing - SSC,Balance Sheet,Unspecified,99840841,-288.00,Unspecified,HOME
"Department for Business, Innovation and Skills",UK Shared Business Services Ltd,28/11/2022,GPC Sundry Expenditure,D&I Management,Unspecified,99840841,288.00,GPC_Miscellaneous GPC Expenditure,HOME
"Department for Business, Innovation and Skills",UK Shared Business Services Ltd,28/11/2022,Other Staff Benefits,People,Health Assured Ltd,99844787,338.40,Professional Services,M4 4FB
"Department for Business, Innovation and Skills",UK Shared Business Services Ltd,28/11/2022,Other Staff Benefits,People,Health Assured Ltd,99844788,338.40,Professional Services,M4 4FB
"Department for Business, Innovation and Skills",UK Shared Business Services Ltd,28/11/2022,Recruitment Costs,Corporate HR,Agenda Resource Management Ltd,99845205,373.36,Professional Services,HU12 8YJ
"Department for Business, Innovation and Skills",UK Shared Business Services Ltd,28/11/2022,Computer Software,SIAM,Softcat plc,99845952,"14,742.60",Computing Software,SL7 1LW
"Department for Business, Innovation and Skills",UK Shared Business Services Ltd,28/11/2022,Agency Staff,ROE Application Upgrade,Alexander Mann Solutions Ltd,99845982,"8,180.88",Recruitment Services,EC2N 3AQ
"Department for Business, Innovation and Skills",UK Shared Business Services Ltd,28/11/2022,T&S - Mileage,Contact Centres,Unspecified,99846102,119.70,Mileage - Car (excl Home to Office),HOME
"Department for Business, Innovation and Skills",UK Shared Business Services Ltd,28/11/2022,T&S - Subsistence,Contact Centres,Unspecified,99846102,24.90,Evening Meal (Actuals),HOME
"Department for Business, Innovation and Skills",UK Shared Business Services Ltd,28/11/2022,T&S - Other Charges,Strategy,Unspecified,99846104,19.48,Miscellaneous (Actuals),HOME
"Department for Business, Innovation and Skills",UK Shared Business Services Ltd,28/11/2022,T&S - Mileage,Executive Function,Unspecified,99846105,23.40,Mileage - Car (excl Home to Office),HOME
"Department for Business, Innovation and Skills",UK Shared Business Services Ltd,28/11/2022,T&S - Public Transport,Contact Centres,Unspecified,99846106,16.30,Public Transport - Taxi Fare (Actuals),HOME
"Department for Business, Innovation and Skills",UK Shared Business Services Ltd,28/11/2022,T&S - Subsistence,Contact Centres,Unspecified,99846106,31.45,Evening Meal (Actuals),HOME
"Department for Business, Innovation and Skills",UK Shared Business Services Ltd,28/11/2022,T&S - Subsistence,HR Ops,Unspecified,99846107,12.20,Lunch (Actuals),HOME
"Department for Business, Innovation and Skills",UK Shared Business Services Ltd,28/11/2022,T&S - Vehicle Hire,HR Ops,Unspecified,99846107,82.49,Vehicle Hire/Rental/Fuel (Actuals),HOME
"Department for Business, Innovation and Skills",UK Shared Business Services Ltd,29/11/2022,Other Staff Benefits,People,Amazon EU SARL,99839165,450.00,ZZ-Employee Benefits,EC2A 2FA
"Department for Business, Innovation and Skills",UK Shared Business Services Ltd,29/11/2022,Computing Consumables,Production Services,Probrand Ltd,99845081,216.00,Computer Consumables,SMARTFORM
"Department for Business, Innovation and Skills",UK Shared Business Services Ltd,29/11/2022,Contract Staff,D&I Management,Alexander Mann Solutions Ltd,99846112,"2,648.52",Recruitment Services,EC2N 3AQ
"Department for Business, Innovation and Skills",UK Shared Business Services Ltd,29/11/2022,Contract Staff,Project Office,Alexander Mann Solutions Ltd,99846115,"3,649.14",Recruitment Services,EC2N 3AQ
"Department for Business, Innovation and Skills",UK Shared Business Services Ltd,29/11/2022,Contract Staff,People,Alexander Mann Solutions Ltd,99846117,"2,126.47",Recruitment Services,EC2N 3AQ
"Department for Business, Innovation and Skills",UK Shared Business Services Ltd,29/11/2022,Staff Training,HRSD Recoverables,Provek Ltd,99846374,"1,620.00",Training,RG19 4LW
"Department for Business, Innovation and Skills",UK Shared Business Services Ltd,29/11/2022,Staff Training,HRSD Recoverables,Provek Ltd,99846375,"1,800.00",Training,RG19 4LW
"Department for Business, Innovation and Skills",UK Shared Business Services Ltd,29/11/2022,T&S - Mileage,D&I Infrastructure & Network Services,Unspecified,99846689,48.75,Mileage - Car (excl Home to Office),HOME
"Department for Business, Innovation and Skills",UK Shared Business Services Ltd,29/11/2022,T&S - Subsistence,D&I Infrastructure & Network Services,Unspecified,99846689,13.39,Lunch (Actuals),HOME
"Department for Business, Innovation and Skills",UK Shared Business Services Ltd,29/11/2022,Health & Safety (inc. Medicals & Opticians),UK SBS Data,Unspecified,99846690,15.99,Medical Fees & Vaccinations (Actuals),HOME
"Department for Business, Innovation and Skills",UK Shared Business Services Ltd,29/11/2022,T&S - Subsistence,Tier 1 ROE Transactions,Unspecified,99846691,39.50,Evening Meal (Actuals),HOME
"Department for Business, Innovation and Skills",UK Shared Business Services Ltd,29/11/2022,T&S - Subsistence,Tier 1 ROE Transactions,Unspecified,99846691,18.03,Lunch (Actuals),HOME
"Department for Business, Innovation and Skills",UK Shared Business Services Ltd,29/11/2022,T&S - Other Charges,Resourcing,Unspecified,99846692,158.99,Home-working Equipment,HOME
"Department for Business, Innovation and Skills",UK Shared Business Services Ltd,29/11/2022,T&S - Parking Tolls Congestion Charges,Contact Centres,Unspecified,99846693,12.00,"Parking, Tolls, Congestion Charge",HOME
"Department for Business, Innovation and Skills",UK Shared Business Services Ltd,29/11/2022,T&S - Subsistence,Contact Centres,Unspecified,99846693,45.30,Evening Meal (Actuals),HOME
"Department for Business, Innovation and Skills",UK Shared Business Services Ltd,29/11/2022,T&S - Subsistence,Contact Centres,Unspecified,99846693,25.83,Lunch (Actuals),HOME
"Department for Business, Innovation and Skills",UK Shared Business Services Ltd,29/11/2022,T&S - Vehicle Hire,Contact Centres,Unspecified,99846693,85.02,Vehicle Hire/Rental/Fuel (Actuals),HOME
"Department for Business, Innovation and Skills",UK Shared Business Services Ltd,30/11/2022,Computer Software Licences,ERP Support,Oracle Corporation UK Ltd,99776772,0.01,PO 4080023756 overbilled 0.01,RG6 1RA
"Department for Business, Innovation and Skills",UK Shared Business Services Ltd,30/11/2022,Computer Software Licences,ERP Support,Oracle Corporation UK Ltd,99776772,"147,897.01",Software as a Service subscription - Sept 22- Nov 22,RG6 1RA
"Department for Business, Innovation and Skills",UK Shared Business Services Ltd,30/11/2022,Staff Training,Production Services,Scaled Agile Inc,99841062,"13,195.05",Computer Consumables,80301 - USD
"Department for Business, Innovation and Skills",UK Shared Business Services Ltd,30/11/2022,T&S - Public Transport,Communications,Unspecified,99842579,35.99,Public Transport - Train (Actuals),HOME
"Department for Business, Innovation and Skills",UK Shared Business Services Ltd,30/11/2022,Computer Software Licences,SHARP,Oracle Corporation UK Ltd,99846482,"13,500.00",Computer Consumables,RG6 1RA
"Department for Business, Innovation and Skills",UK Shared Business Services Ltd,30/11/2022,Staff Training,HRSD Recoverables,ASK Europe PLC,99846804,"1,344.00",Training,MK43 0BT
"Department for Business, Innovation and Skills",UK Shared Business Services Ltd,30/11/2022,Staff Training,HRSD Recoverables,ASK Europe PLC,99846812,"1,344.00",Training,MK43 0BT
"Department for Business, Innovation and Skills",UK Shared Business Services Ltd,30/11/2022,Staff Training,HRSD Recoverables,ASK Europe PLC,99846814,840.00,Training,MK43 0BT
"Department for Business, Innovation and Skills",UK Shared Business Services Ltd,30/11/2022,Staff Training,HRSD Recoverables,ASK Europe PLC,99846815,504.00,Training,MK43 0BT
"Department for Business, Innovation and Skills",UK Shared Business Services Ltd,30/11/2022,Staff Training,HRSD Recoverables,ASK Europe PLC,99846817,840.00,Training,MK43 0BT
"Department for Business, Innovation and Skills",UK Shared Business Services Ltd,30/11/2022,Computer Software Licences,ERP Support,Oracle Corporation UK Ltd,99846818,"146,942.24","BPO License Core Service Bundle, Image Capture Bundle and Grants Bundle (Dec 2021 - May 2022)",RG6 1RA
"Department for Business, Innovation and Skills",UK Shared Business Services Ltd,30/11/2022,Staff Training,HRSD Recoverables,ASK Europe PLC,99846820,504.00,Training,MK43 0BT
"Department for Business, Innovation and Skills",UK Shared Business Services Ltd,30/11/2022,Staff Training,HRSD Recoverables,ASK Europe PLC,99846821,840.00,Training,MK43 0BT
"Department for Business, Innovation and Skills",UK Shared Business Services Ltd,30/11/2022,IT Cloud Services,Production Services,Jisc Services Ltd,99846830,540.00,Managed AWS Consumption,BS1 6NB
"Department for Business, Innovation and Skills",UK Shared Business Services Ltd,30/11/2022,Staff Training,HRSD Recoverables,Feldman Ltd T/A Brian Feldman and Associates,99846834,390.00,Training,SW15 5RH
"Department for Business, Innovation and Skills",UK Shared Business Services Ltd,30/11/2022,Staff Training,HRSD Recoverables,ASK Europe PLC,99847010,"1,344.00",Training,MK43 0BT
"Department for Business, Innovation and Skills",UK Shared Business Services Ltd,30/11/2022,T&S - Vehicle Hire,Finance Services,Enterprise Rent-A-Car UK Ltd,99847013,76.70,,GL2 5DA
"Department for Business, Innovation and Skills",UK Shared Business Services Ltd,30/11/2022,T&S - Vehicle Hire,Finance Services,Enterprise Rent-A-Car UK Ltd,99847013,15.34,SR 11396684 CAR HIRE,GL2 5DA
"Department for Business, Innovation and Skills",UK Shared Business Services Ltd,30/11/2022,Recruitment Costs,Corporate HR,Agenda Resource Management Ltd,99847291,558.95,Professional Services,HU12 8YJ
"Department for Business, Innovation and Skills",UK Shared Business Services Ltd,30/11/2022,IT Cloud Services,Production Services,FlyForm Ltd,99847487,"4,999.20",Computing Software,CF10 3AG
"Department for Business, Innovation and Skills",UK Shared Business Services Ltd,30/11/2022,T&S - Subsistence,D&I Operations,Unspecified,99847717,3.50,Evening Meal (Actuals),HOME
"Department for Business, Innovation and Skills",UK Shared Business Services Ltd,30/11/2022,T&S - Subsistence,D&I Operations,Unspecified,99847717,44.21,Lunch (Actuals),HOME
"Department for Business, Innovation and Skills",UK Shared Business Services Ltd,30/11/2022,T&S - Public Transport,"Risk, Information & Security Compliance",Unspecified,99847718,3.50,Public Transport - Bus (Actuals),HOME
"Department for Business, Innovation and Skills",UK Shared Business Services Ltd,30/11/2022,T&S - Subsistence,"Risk, Information & Security Compliance",Unspecified,99847719,453.80,Lunch (Actuals),HOME
"Department for Business, Innovation and Skills",UK Shared Business Services Ltd,30/11/2022,T&S - Mileage,D&I Infrastructure & Network Services,Unspecified,99847720,46.80,Mileage - Car (excl Home to Office),HOME
"Department for Business, Innovation and Skills",UK Shared Business Services Ltd,01/11/2022,Bank Charges,Corporate Finance,,,111.55,Bank Charges,
"Department for Business, Innovation and Skills",UK Shared Business Services Ltd,03/11/2022,Bank Charges,Corporate Finance,,,-85.00,Bank Charges,
"Department for Business, Innovation and Skills",UK Shared Business Services Ltd,25/11/2022,Bank Charges,Corporate Finance,,,0.45,Bank Charges,
"Department for Business, Innovation and Skills",UK Shared Business Services Ltd,28/11/2022,Bank Charges,Corporate Finance,,,972.50,Bank Charges,
"Department for Business, Innovation and Skills",UK Shared Business Services Ltd,30/11/2022,Bank Charges,Corporate Finance,,,85.00,Bank Charges,
"Department for Business, Innovation and Skills",UK Shared Business Services Ltd,30/11/2022,Bank Charges,Corporate Finance,,,85.00,Bank Charges,
